Body,Body name,Date,Transaction number,Amount,Supplier name,Supplier ID,Expense area,Fund type,Expense type
http://thanet.gov.uk/supplierspend,Thanet District Council,02/07/2014,363798,19878.33,Canterbury City Council,CAN004,East Kent Shared Services,Revenue,Supplies and Services
http://thanet.gov.uk/supplierspend,Thanet District Council,02/07/2014,363799,59635.03,Canterbury City Council,CAN004,East Kent Shared Services,Revenue,Supplies and Services
http://thanet.gov.uk/supplierspend,Thanet District Council,02/07/2014,363861,244.55,Channel Commercials Plc,CCO001,Director Of Operational Services,Revenue,Transport Related Expenditure
http://thanet.gov.uk/supplierspend,Thanet District Council,02/07/2014,363595,430.50,Civica Uk Ltd,CIV003,East Kent Shared Services,Revenue,Supplies and Services
http://thanet.gov.uk/supplierspend,Thanet District Council,02/07/2014,363764,397.20,Eagle Envelopes Ltd,EAG001,East Kent Shared Services,Revenue,Supplies and Services
http://thanet.gov.uk/supplierspend,Thanet District Council,02/07/2014,363870,1556.80,Egbert H Taylor & Company Ltd,TAY005,Director Of Operational Services,Revenue,Supplies and Services
http://thanet.gov.uk/supplierspend,Thanet District Council,02/07/2014,364038,1556.80,Egbert H Taylor & Company Ltd,TAY005,Director Of Operational Services,Revenue,Supplies and Services
http://thanet.gov.uk/supplierspend,Thanet District Council,02/07/2014,363803,17889.89,G & W Gardner Building Cont Ltd,GAR001,Director of Corporate Services and Transformation,Balance Sheet,Current Assets
http://thanet.gov.uk/supplierspend,Thanet District Council,02/07/2014,363723,254.00,Hands On Suppliers Ltd,HAN007,Director Of Operational Services,Revenue,Supplies and Services
http://thanet.gov.uk/supplierspend,Thanet District Council,02/07/2014,363536,7892.59,Hr Go Recruitment Ltd,HRG002,Director Of Operational Services,Revenue,Employees
http://thanet.gov.uk/supplierspend,Thanet District Council,02/07/2014,363715,6502.61,Hr Go Recruitment Ltd,HRG002,Director Of Operational Services,Revenue,Employees
http://thanet.gov.uk/supplierspend,Thanet District Council,02/07/2014,364066,10146.06,Hr Go Recruitment Ltd,HRG002,Director Of Operational Services,Revenue,Employees
http://thanet.gov.uk/supplierspend,Thanet District Council,02/07/2014,364069,7712.84,Hr Go Recruitment Ltd,HRG002,Director Of Operational Services,Revenue,Employees
http://thanet.gov.uk/supplierspend,Thanet District Council,02/07/2014,364079,550.16,Hr Go Recruitment Ltd,HRG002,Director Of Operational Services,Revenue,Employees
http://thanet.gov.uk/supplierspend,Thanet District Council,02/07/2014,364084,1029.08,Hr Go Recruitment Ltd,HRG002,Director Of Operational Services,Revenue,Employees
http://thanet.gov.uk/supplierspend,Thanet District Council,02/07/2014,364090,510.00,Hr Go Recruitment Ltd,HRG002,East Kent Shared Services,Revenue,Employees
http://thanet.gov.uk/supplierspend,Thanet District Council,02/07/2014,364091,5873.19,Hr Go Recruitment Ltd,HRG002,Director Of Operational Services,Revenue,Employees
http://thanet.gov.uk/supplierspend,Thanet District Council,02/07/2014,363838,410.00,M D Electrics,MDE001,Director Of Operational Services,Revenue,Premises Related Expenditure
http://thanet.gov.uk/supplierspend,Thanet District Council,02/07/2014,364128,1000.00,Margate Jazz Scene,MJA001,Director Of Community Services,Revenue,Supplies and Services
http://thanet.gov.uk/supplierspend,Thanet District Council,02/07/2014,363763,620.00,Maxwells Grounds Maintenance Ltd,MAX002,Director Of Operational Services,Revenue,Premises Related Expenditure
http://thanet.gov.uk/supplierspend,Thanet District Council,02/07/2014,363856,1892.22,Mears Ltd,MEA003,Director Of Operational Services,Revenue,Premises Related Expenditure
http://thanet.gov.uk/supplierspend,Thanet District Council,02/07/2014,364082,1400.00,Melenga Business Solutions Ltd,MEL012,Director of Corporate Services and Transformation,Revenue,Supplies and Services
http://thanet.gov.uk/supplierspend,Thanet District Council,02/07/2014,364070,3321.00,Michael Page Int Recruitment Ltd,PAG008,Director of Corporate Services and Transformation,Revenue,Supplies and Services
http://thanet.gov.uk/supplierspend,Thanet District Council,02/07/2014,364102,74132.97,Minster Parish Council,MIN001,Director of Corporate Services and Transformation,Balance Sheet,Long Term Assets
http://thanet.gov.uk/supplierspend,Thanet District Council,02/07/2014,364129,1000.00,Minster Village Show,MIN021,Director Of Community Services,Revenue,Supplies and Services
http://thanet.gov.uk/supplierspend,Thanet District Council,02/07/2014,363193,840.00,Mr Guy Williams,WIL068,Director Of Community Services,Revenue,Supplies and Services
http://thanet.gov.uk/supplierspend,Thanet District Council,02/07/2014,364085,397.89,O2 (Uk) Ltd,O2U001,Director Of Operational Services,Revenue,Supplies and Services
http://thanet.gov.uk/supplierspend,Thanet District Council,02/07/2014,363864,1100.50,Ocs Group Uk Ltd T/A Fountains,OCS005,Director Of Operational Services,Revenue,Premises Related Expenditure
http://thanet.gov.uk/supplierspend,Thanet District Council,02/07/2014,364086,285.82,Orange Personal Communications Ltd,ORA002,Director of Corporate Services and Transformation,Revenue,Supplies and Services
http://thanet.gov.uk/supplierspend,Thanet District Council,02/07/2014,363836,900.00,Sellick Partnership Group Ltd,SEL011,Director Of Community Services,Revenue,Supplies and Services
http://thanet.gov.uk/supplierspend,Thanet District Council,02/07/2014,363837,900.00,Sellick Partnership Group Ltd,SEL011,Director Of Community Services,Revenue,Supplies and Services
http://thanet.gov.uk/supplierspend,Thanet District Council,02/07/2014,363747,249.90,Southern Electric,SEL007,Director Of Operational Services,Revenue,Premises Related Expenditure
http://thanet.gov.uk/supplierspend,Thanet District Council,02/07/2014,363750,417.02,Southern Electric,SEL007,Director Of Community Services,Revenue,Premises Related Expenditure
http://thanet.gov.uk/supplierspend,Thanet District Council,02/07/2014,363754,-410.46,Southern Electric,SEL007,Director Of Community Services,Revenue,Premises Related Expenditure
http://thanet.gov.uk/supplierspend,Thanet District Council,02/07/2014,363742,1381.26,Southern Water,SWA001,Director Of Operational Services,Revenue,Premises Related Expenditure
http://thanet.gov.uk/supplierspend,Thanet District Council,02/07/2014,363743,1341.46,Southern Water,SWA001,Director Of Operational Services,Revenue,Premises Related Expenditure
http://thanet.gov.uk/supplierspend,Thanet District Council,02/07/2014,363848,994.21,Southern Water,SWA001,Director Of Operational Services,Revenue,Premises Related Expenditure
http://thanet.gov.uk/supplierspend,Thanet District Council,02/07/2014,363558,1312.49,The Glenwood Hotel,GLE007,Director Of Community Services,Revenue,Supplies and Services
http://thanet.gov.uk/supplierspend,Thanet District Council,02/07/2014,363783,279.58,Total Supplies Ltd,TOT009,Director of Corporate Services and Transformation,Balance Sheet,Current Liabilities
http://thanet.gov.uk/supplierspend,Thanet District Council,02/07/2014,362442,8822.63,Wicksteed Leisure Ltd,WIC002,Director of Corporate Services and Transformation,Balance Sheet,Current Assets
http://thanet.gov.uk/supplierspend,Thanet District Council,04/07/2014,364051,210.00,All About Asbestos Limited,ALL044,Director Of Operational Services,Revenue,Supplies and Services
http://thanet.gov.uk/supplierspend,Thanet District Council,04/07/2014,364309,658.45,Allstar Business Solutions Ltd,ALL038,Director Of Operational Services,Revenue,Transport Related Expenditure
http://thanet.gov.uk/supplierspend,Thanet District Council,04/07/2014,364240,650.00,Amber Driver Training,AMB004,Director Of Operational Services,Revenue,Employees
http://thanet.gov.uk/supplierspend,Thanet District Council,04/07/2014,364286,6130.40,Amicushorizon Ltd S.E. Consortium,AMI004,Director Of Community Services,Revenue,Supplies and Services
http://thanet.gov.uk/supplierspend,Thanet District Council,04/07/2014,364108,764.00,Aston Walker,AST008,Director of Corporate Services and Transformation,Revenue,Supplies and Services
http://thanet.gov.uk/supplierspend,Thanet District Council,04/07/2014,364289,325.00,Bradstowe Chartered Surveyors,BRA027,Director Of Community Services,Revenue,Supplies and Services
http://thanet.gov.uk/supplierspend,Thanet District Council,04/07/2014,364290,325.00,Bradstowe Chartered Surveyors,BRA027,Director Of Community Services,Revenue,Supplies and Services
http://thanet.gov.uk/supplierspend,Thanet District Council,04/07/2014,364292,325.00,Bradstowe Chartered Surveyors,BRA027,Director Of Community Services,Revenue,Supplies and Services
http://thanet.gov.uk/supplierspend,Thanet District Council,04/07/2014,364307,10000.00,Broadstairs Town Team,BTO003,Director Of Community Services,Revenue,Supplies and Services
http://thanet.gov.uk/supplierspend,Thanet District Council,04/07/2014,362754,5987.61,Canterbury City Council,CAN004,Director Of Operational Services,Revenue,Supplies and Services
http://thanet.gov.uk/supplierspend,Thanet District Council,04/07/2014,362755,32710.56,Canterbury City Council,CAN004,Director Of Operational Services,Revenue,Supplies and Services
http://thanet.gov.uk/supplierspend,Thanet District Council,04/07/2014,363762,442.50,Cave Creative Limited,CAV003,Director Of Community Services,Revenue,Supplies and Services
http://thanet.gov.uk/supplierspend,Thanet District Council,04/07/2014,364299,1000.00,Crate Studio & Project Space Ltd,CRA008,Director Of Community Services,Revenue,Supplies and Services
http://thanet.gov.uk/supplierspend,Thanet District Council,04/07/2014,364187,900.00,Data Integration,DAT006,East Kent Shared Services,Revenue,Supplies and Services
http://thanet.gov.uk/supplierspend,Thanet District Council,04/07/2014,364188,2079.38,Data Integration,DAT006,East Kent Shared Services,Revenue,Supplies and Services
http://thanet.gov.uk/supplierspend,Thanet District Council,04/07/2014,364098,650.00,Dover District Council,DOV001,Director of Corporate Services and Transformation,Revenue,Employees
http://thanet.gov.uk/supplierspend,Thanet District Council,04/07/2014,364228,5524.16,Dover District Council,DOV001,Director of Corporate Services and Transformation,Revenue,Supplies and Services
http://thanet.gov.uk/supplierspend,Thanet District Council,04/07/2014,364190,108084.00,East Kent Housing Ltd,EKH002,Director Of Community Services,Revenue,Third Party Payments
http://thanet.gov.uk/supplierspend,Thanet District Council,04/07/2014,363866,1435.50,Eyeball Signs,EYE002,Director Of Operational Services,Revenue,Premises Related Expenditure
http://thanet.gov.uk/supplierspend,Thanet District Council,04/07/2014,364304,697.36,Family Mosaic Housing,FAM001,Director of Corporate Services and Transformation,Balance Sheet,Long Term Assets
http://thanet.gov.uk/supplierspend,Thanet District Council,04/07/2014,364306,1324.20,Family Mosaic Housing,FAM001,Director of Corporate Services and Transformation,Balance Sheet,Long Term Assets
http://thanet.gov.uk/supplierspend,Thanet District Council,04/07/2014,364065,11260.06,Fresh Acres Nurseries Limited,FRE017,Director Of Operational Services,Revenue,Supplies and Services
http://thanet.gov.uk/supplierspend,Thanet District Council,04/07/2014,363724,28071.63,G Chittenden,CHI001,Director Of Operational Services,Revenue,Premises Related Expenditure
http://thanet.gov.uk/supplierspend,Thanet District Council,04/07/2014,364207,10225.80,G Chittenden,CHI001,Director Of Operational Services,Revenue,Premises Related Expenditure
http://thanet.gov.uk/supplierspend,Thanet District Council,04/07/2014,364320,150.00,G Chittenden,CHI001,Director Of Operational Services,Revenue,Premises Related Expenditure
http://thanet.gov.uk/supplierspend,Thanet District Council,04/07/2014,364321,6786.99,G Chittenden,CHI001,Director of Corporate Services and Transformation,Balance Sheet,Current Assets
http://thanet.gov.uk/supplierspend,Thanet District Council,04/07/2014,364323,4774.20,G Chittenden,CHI001,Director Of Operational Services,Revenue,Premises Related Expenditure
http://thanet.gov.uk/supplierspend,Thanet District Council,04/07/2014,364324,1400.00,G Chittenden,CHI001,Director Of Operational Services,Revenue,Premises Related Expenditure
http://thanet.gov.uk/supplierspend,Thanet District Council,04/07/2014,363204,1575.00,Gpl Construction Services Ltd,GPL001,Director Of Operational Services,Revenue,Premises Related Expenditure
http://thanet.gov.uk/supplierspend,Thanet District Council,04/07/2014,364055,325.00,Great West Autos Ltd,GRE008,Director Of Operational Services,Revenue,Premises Related Expenditure
http://thanet.gov.uk/supplierspend,Thanet District Council,04/07/2014,364282,750.00,Gulliver'S Truck Hire Limited,GUL001,Director Of Operational Services,Revenue,Transport Related Expenditure
http://thanet.gov.uk/supplierspend,Thanet District Council,04/07/2014,363727,1380.00,Haymarket Media Group Ltd,HAY018,Director Of Community Services,Revenue,Supplies and Services
http://thanet.gov.uk/supplierspend,Thanet District Council,04/07/2014,364272,217.17,Haynes Of Maidstone Ltd,HAY008,Director Of Operational Services,Revenue,Transport Related Expenditure
http://thanet.gov.uk/supplierspend,Thanet District Council,04/07/2014,364243,1026.05,Hilton Cabinet Co Ltd,HIL002,Director Of Operational Services,Revenue,Supplies and Services
http://thanet.gov.uk/supplierspend,Thanet District Council,04/07/2014,364124,525.00,Hr Go Recruitment Ltd,HRG002,East Kent Shared Services,Revenue,Employees
http://thanet.gov.uk/supplierspend,Thanet District Council,04/07/2014,364125,525.00,Hr Go Recruitment Ltd,HRG002,East Kent Shared Services,Revenue,Employees
http://thanet.gov.uk/supplierspend,Thanet District Council,04/07/2014,362375,60000.00,Jadu Limited,JAD003,Director of Corporate Services and Transformation,Balance Sheet,Intangible Assets
http://thanet.gov.uk/supplierspend,Thanet District Council,04/07/2014,362375,22400.00,Jadu Limited,JAD003,Director of Corporate Services and Transformation,Balance Sheet,Long Term Assets
http://thanet.gov.uk/supplierspend,Thanet District Council,04/07/2014,362375,26696.00,Jadu Limited,JAD003,East Kent Shared Services,Revenue,Supplies and Services
http://thanet.gov.uk/supplierspend,Thanet District Council,04/07/2014,364025,247.45,Jewson Ltd,JEW001,Director Of Operational Services,Revenue,Supplies and Services
http://thanet.gov.uk/supplierspend,Thanet District Council,04/07/2014,364246,425.48,Johnston Sweepers Ltd,JOH008,Director Of Operational Services,Revenue,Transport Related Expenditure
http://thanet.gov.uk/supplierspend,Thanet District Council,04/07/2014,363284,650.00,Jump It Recruitment Solutions Ltd,JUM001,East Kent Shared Services,Revenue,Employees
http://thanet.gov.uk/supplierspend,Thanet District Council,04/07/2014,363851,650.00,Jump It Recruitment Solutions Ltd,JUM001,East Kent Shared Services,Revenue,Employees
http://thanet.gov.uk/supplierspend,Thanet District Council,04/07/2014,363288,2651.05,Kent County Council (Kcs),KCC003,Director of Corporate Services and Transformation,Revenue,Supplies and Services
http://thanet.gov.uk/supplierspend,Thanet District Council,04/07/2014,363288,69.32,Kent County Council (Kcs),KCC003,Director Of Operational Services,Revenue,Supplies and Services
http://thanet.gov.uk/supplierspend,Thanet District Council,04/07/2014,363289,2621.20,Kent County Council (Kcs),KCC003,Director of Corporate Services and Transformation,Revenue,Supplies and Services
http://thanet.gov.uk/supplierspend,Thanet District Council,04/07/2014,363289,78.50,Kent County Council (Kcs),KCC003,Director Of Community Services,Revenue,Supplies and Services
http://thanet.gov.uk/supplierspend,Thanet District Council,04/07/2014,363289,205.71,Kent County Council (Kcs),KCC003,Director Of Operational Services,Revenue,Supplies and Services
http://thanet.gov.uk/supplierspend,Thanet District Council,04/07/2014,364014,400.17,Kent County Council (Kcs),KCC003,Director of Corporate Services and Transformation,Revenue,Supplies and Services
http://thanet.gov.uk/supplierspend,Thanet District Council,04/07/2014,364043,-213.71,Kent County Council (Kcs),KCC003,Director Of Operational Services,Revenue,Premises Related Expenditure
http://thanet.gov.uk/supplierspend,Thanet District Council,04/07/2014,364050,-308.17,Kent County Council (Kcs),KCC003,Director Of Operational Services,Revenue,Premises Related Expenditure
http://thanet.gov.uk/supplierspend,Thanet District Council,04/07/2014,364081,423.88,Maroon Office Limited,MAR101,Director Of Community Services,Revenue,Supplies and Services
http://thanet.gov.uk/supplierspend,Thanet District Council,04/07/2014,363885,300.00,Maxwells Grounds Maintenance Ltd,MAX002,Director Of Operational Services,Revenue,Premises Related Expenditure
http://thanet.gov.uk/supplierspend,Thanet District Council,04/07/2014,364294,127.09,Mears Ltd,MEA003,Director Of Operational Services,Revenue,Premises Related Expenditure
http://thanet.gov.uk/supplierspend,Thanet District Council,04/07/2014,364294,67.24,Mears Ltd,MEA003,Director Of Operational Services,Revenue,Premises Related Expenditure
http://thanet.gov.uk/supplierspend,Thanet District Council,04/07/2014,364295,1162.09,Mears Ltd,MEA003,Director Of Operational Services,Revenue,Premises Related Expenditure
http://thanet.gov.uk/supplierspend,Thanet District Council,04/07/2014,364021,2940.00,Meridian Membranes,MER018,Director Of Operational Services,Revenue,Premises Related Expenditure
http://thanet.gov.uk/supplierspend,Thanet District Council,04/07/2014,364131,3321.00,Michael Page Int Recruitment Ltd,PAG008,Director of Corporate Services and Transformation,Revenue,Supplies and Services
http://thanet.gov.uk/supplierspend,Thanet District Council,04/07/2014,364111,47.50,Mr Darren Osborne,OSB008,Director Of Community Services,Revenue,Premises Related Expenditure
http://thanet.gov.uk/supplierspend,Thanet District Council,04/07/2014,364111,626.66,Mr Darren Osborne,OSB008,Director Of Operational Services,Revenue,Premises Related Expenditure
http://thanet.gov.uk/supplierspend,Thanet District Council,04/07/2014,364192,5084.20,National Express Ltd,NAT010,Director Of Community Services,Revenue,Supplies and Services
http://thanet.gov.uk/supplierspend,Thanet District Council,04/07/2014,363617,782.05,Ocs Group Uk Ltd T/A Fountains,OCS005,Director Of Operational Services,Revenue,Premises Related Expenditure
http://thanet.gov.uk/supplierspend,Thanet District Council,04/07/2014,363708,253.11,Ocs Group Uk Ltd T/A Fountains,OCS005,Director Of Operational Services,Revenue,Premises Related Expenditure
http://thanet.gov.uk/supplierspend,Thanet District Council,04/07/2014,363753,253.11,Ocs Group Uk Ltd T/A Fountains,OCS005,Director Of Operational Services,Revenue,Premises Related Expenditure
http://thanet.gov.uk/supplierspend,Thanet District Council,04/07/2014,363756,782.05,Ocs Group Uk Ltd T/A Fountains,OCS005,Director Of Operational Services,Revenue,Premises Related Expenditure
http://thanet.gov.uk/supplierspend,Thanet District Council,04/07/2014,364298,18368.00,Precept Cs Ltd,PRE032,Director of Corporate Services and Transformation,Balance Sheet,Long Term Assets
http://thanet.gov.uk/supplierspend,Thanet District Council,04/07/2014,363203,5172.50,Riga Bros Uk Limited,RIG013,Director Of Operational Services,Revenue,Premises Related Expenditure
http://thanet.gov.uk/supplierspend,Thanet District Council,04/07/2014,364310,3500.00,Roxana Tesla,TES002,Director Of Community Services,Revenue,Supplies and Services
http://thanet.gov.uk/supplierspend,Thanet District Council,04/07/2014,363849,900.00,Satisnet Limited,SAT002,East Kent Shared Services,Revenue,Supplies and Services
http://thanet.gov.uk/supplierspend,Thanet District Council,04/07/2014,364093,900.00,Sellick Partnership Group Ltd,SEL011,Director Of Community Services,Revenue,Supplies and Services
http://thanet.gov.uk/supplierspend,Thanet District Council,04/07/2014,363421,710.65,Southern Electric,SEL007,Director Of Operational Services,Revenue,Premises Related Expenditure
http://thanet.gov.uk/supplierspend,Thanet District Council,04/07/2014,364121,2318.24,Southern Electric,SEL007,Director Of Operational Services,Revenue,Premises Related Expenditure
http://thanet.gov.uk/supplierspend,Thanet District Council,04/07/2014,361443,328.18,Southern Water,SWA001,Director Of Operational Services,Revenue,Premises Related Expenditure
http://thanet.gov.uk/supplierspend,Thanet District Council,04/07/2014,364247,5874.47,Straight Plc,STR021,Director of Corporate Services and Transformation,Balance Sheet,Long Term Assets
http://thanet.gov.uk/supplierspend,Thanet District Council,04/07/2014,363860,820.30,The Bell Brush Company,BEL018,Director Of Operational Services,Revenue,Supplies and Services
http://thanet.gov.uk/supplierspend,Thanet District Council,04/07/2014,364284,3195.15,The Housing Ombudsman,HOU013,Director Of Community Services,Revenue,Supplies and Services
http://thanet.gov.uk/supplierspend,Thanet District Council,04/07/2014,361752,-1642.88,Thomson Reuters,THO043,Director of Corporate Services and Transformation,Revenue,Supplies and Services
http://thanet.gov.uk/supplierspend,Thanet District Council,04/07/2014,364018,1890.00,Thomson Reuters,THO043,Director Of Community Services,Revenue,Supplies and Services
http://thanet.gov.uk/supplierspend,Thanet District Council,04/07/2014,364281,283.32,Viridor Waste Management Ltd,VIR003,Director Of Operational Services,Revenue,Premises Related Expenditure
http://thanet.gov.uk/supplierspend,Thanet District Council,04/07/2014,364297,1050.00,Westbrook Construction (Margate) Ltd,WES021,Director of Corporate Services and Transformation,Balance Sheet,Long Term Assets
http://thanet.gov.uk/supplierspend,Thanet District Council,08/07/2014,364214,8014.05,Bidwells Llp,BID001,Director of Corporate Services and Transformation,Balance Sheet,Long Term Assets
http://thanet.gov.uk/supplierspend,Thanet District Council,08/07/2014,364238,350.00,Dover District Council,DOV001,East Kent Shared Services,Revenue,Employees
http://thanet.gov.uk/supplierspend,Thanet District Council,08/07/2014,364230,23987.50,Esri (Uk) Ltd,ESR001,East Kent Shared Services,Revenue,Supplies and Services
http://thanet.gov.uk/supplierspend,Thanet District Council,08/07/2014,364088,346.84,Hr Go Recruitment Ltd,HRG002,Director of Corporate Services and Transformation,Revenue,Employees
http://thanet.gov.uk/supplierspend,Thanet District Council,08/07/2014,363768,4550.00,John H Rundle Limited,RUN006,Director of Corporate Services and Transformation,Balance Sheet,Long Term Assets
http://thanet.gov.uk/supplierspend,Thanet District Council,08/07/2014,364266,60000.00,Kent County Council,KCC002,East Kent Shared Services,Revenue,Supplies and Services
http://thanet.gov.uk/supplierspend,Thanet District Council,08/07/2014,364311,2000.00,Margate Carnival Group,MAR044,Director Of Community Services,Revenue,Supplies and Services
http://thanet.gov.uk/supplierspend,Thanet District Council,08/07/2014,364184,1162.09,Mears Ltd,MEA003,Director Of Operational Services,Revenue,Premises Related Expenditure
http://thanet.gov.uk/supplierspend,Thanet District Council,08/07/2014,364503,67.24,Mears Ltd,MEA003,Director Of Operational Services,Revenue,Premises Related Expenditure
http://thanet.gov.uk/supplierspend,Thanet District Council,08/07/2014,364503,127.09,Mears Ltd,MEA003,Director Of Operational Services,Revenue,Premises Related Expenditure
http://thanet.gov.uk/supplierspend,Thanet District Council,08/07/2014,364028,511.97,Neopost Ltd,NEO003,Director Of Operational Services,Revenue,Supplies and Services
http://thanet.gov.uk/supplierspend,Thanet District Council,08/07/2014,364213,1169.00,Neopost Ltd,NEO003,Director of Corporate Services and Transformation,Revenue,Supplies and Services
http://thanet.gov.uk/supplierspend,Thanet District Council,08/07/2014,363707,582.40,Ocs Group Uk Ltd T/A Fountains,OCS005,Director Of Community Services,Revenue,Supplies and Services
http://thanet.gov.uk/supplierspend,Thanet District Council,08/07/2014,364199,11225.63,Ocs Group Uk Ltd T/A Fountains,OCS005,Director of Corporate Services and Transformation,Balance Sheet,Current Assets
http://thanet.gov.uk/supplierspend,Thanet District Council,08/07/2014,364232,247.75,Parkeon Limited,PAR063,Director Of Operational Services,Revenue,Supplies and Services
http://thanet.gov.uk/supplierspend,Thanet District Council,08/07/2014,364205,4010.20,Rostrvm Solutions Ltd,ROS019,East Kent Shared Services,Revenue,Supplies and Services
http://thanet.gov.uk/supplierspend,Thanet District Council,08/07/2014,364229,2754.52,Royal Mail,ROY004,Director of Corporate Services and Transformation,Revenue,Supplies and Services
http://thanet.gov.uk/supplierspend,Thanet District Council,08/07/2014,364501,3040.66,Royal Mail,ROY004,Director of Corporate Services and Transformation,Revenue,Supplies and Services
http://thanet.gov.uk/supplierspend,Thanet District Council,08/07/2014,364210,279.50,Tnt Uk Ltd,TNT001,Director of Corporate Services and Transformation,Revenue,Supplies and Services
http://thanet.gov.uk/supplierspend,Thanet District Council,08/07/2014,364073,232.20,Total Supplies Ltd,TOT009,Director of Corporate Services and Transformation,Balance Sheet,Current Liabilities
http://thanet.gov.uk/supplierspend,Thanet District Council,08/07/2014,364502,5554.20,Trueden Disability Adaptations Ltd,TRU012,Director of Corporate Services and Transformation,Balance Sheet,Long Term Assets
http://thanet.gov.uk/supplierspend,Thanet District Council,08/07/2014,364293,2895.54,Webaspx Limited,WEB016,Director Of Operational Services,Revenue,Employees
http://thanet.gov.uk/supplierspend,Thanet District Council,11/07/2014,364424,3675.00,Abate (Kent) Limited,ABA007,Director of Corporate Services and Transformation,Balance Sheet,Current Assets
http://thanet.gov.uk/supplierspend,Thanet District Council,11/07/2014,363865,600.00,Belinda Dixon Media Limited,DIX006,Director Of Community Services,Revenue,Supplies and Services
http://thanet.gov.uk/supplierspend,Thanet District Council,11/07/2014,364747,525.00,Bradstowe Chartered Surveyors,BRA027,Director Of Community Services,Revenue,Supplies and Services
http://thanet.gov.uk/supplierspend,Thanet District Council,11/07/2014,364746,3820.30,Bramling Construction Ltd,BRA020,Director of Corporate Services and Transformation,Balance Sheet,Long Term Assets
http://thanet.gov.uk/supplierspend,Thanet District Council,11/07/2014,364235,1484.00,Dover District Council,DOV001,Director of Corporate Services and Transformation,Revenue,Employees
http://thanet.gov.uk/supplierspend,Thanet District Council,11/07/2014,364237,540.00,Dover District Council,DOV001,Director of Corporate Services and Transformation,Revenue,Employees
http://thanet.gov.uk/supplierspend,Thanet District Council,11/07/2014,364744,761.20,Family Mosaic Housing,FAM001,Director of Corporate Services and Transformation,Balance Sheet,Long Term Assets
http://thanet.gov.uk/supplierspend,Thanet District Council,11/07/2014,364751,2214.40,Family Mosaic Housing,FAM001,Director of Corporate Services and Transformation,Balance Sheet,Long Term Assets
http://thanet.gov.uk/supplierspend,Thanet District Council,11/07/2014,363770,6492.96,Fuel Oils Kent,FUE001,Director Of Operational Services,Revenue,Supplies and Services
http://thanet.gov.uk/supplierspend,Thanet District Council,11/07/2014,364457,650.00,Hi Way Services Ltd,HIW002,Director Of Operational Services,Revenue,Premises Related Expenditure
http://thanet.gov.uk/supplierspend,Thanet District Council,11/07/2014,364468,395.31,Hi Way Services Ltd,HIW002,Director Of Operational Services,Revenue,Premises Related Expenditure
http://thanet.gov.uk/supplierspend,Thanet District Council,11/07/2014,364469,306.00,Hi Way Services Ltd,HIW002,Director Of Operational Services,Revenue,Premises Related Expenditure
http://thanet.gov.uk/supplierspend,Thanet District Council,11/07/2014,364609,427.57,Hr Go Recruitment Ltd,HRG002,Director of Corporate Services and Transformation,Revenue,Employees
http://thanet.gov.uk/supplierspend,Thanet District Council,11/07/2014,364749,3235.49,Idox Software  Limited,IDO001,Director Of Community Services,Revenue,Supplies and Services
http://thanet.gov.uk/supplierspend,Thanet District Council,11/07/2014,364750,9351.20,Idox Software  Limited,IDO001,Director of Corporate Services and Transformation,Revenue,Supplies and Services
http://thanet.gov.uk/supplierspend,Thanet District Council,11/07/2014,364750,0.08,Idox Software  Limited,IDO001,Director Of Community Services,Revenue,Supplies and Services
http://thanet.gov.uk/supplierspend,Thanet District Council,11/07/2014,364753,308.00,Kent County Council,KCC002,Director of Corporate Services and Transformation,Balance Sheet,Long Term Assets
http://thanet.gov.uk/supplierspend,Thanet District Council,11/07/2014,364597,571.00,Km Media Group Limited,KMM001,Director of Corporate Services and Transformation,Revenue,Supplies and Services
http://thanet.gov.uk/supplierspend,Thanet District Council,11/07/2014,364674,2723.74,Level 3 Communications (Uk) Ltd,LEV005,Director of Corporate Services and Transformation,Balance Sheet,Current Assets
http://thanet.gov.uk/supplierspend,Thanet District Council,11/07/2014,364617,521.08,Lyreco Uk Limited,LYR001,Director of Corporate Services and Transformation,Revenue,Supplies and Services
http://thanet.gov.uk/supplierspend,Thanet District Council,11/07/2014,364133,98798.67,Mears Ltd,MEA003,Director Of Community Services,Revenue,Premises Related Expenditure
http://thanet.gov.uk/supplierspend,Thanet District Council,11/07/2014,364135,1923.50,Mears Ltd,MEA003,Director Of Community Services,Revenue,Premises Related Expenditure
http://thanet.gov.uk/supplierspend,Thanet District Council,11/07/2014,364181,66132.23,Mears Ltd,MEA003,Director of Corporate Services and Transformation,Balance Sheet,Current Assets
http://thanet.gov.uk/supplierspend,Thanet District Council,11/07/2014,364182,1859.71,Mears Ltd,MEA003,Director Of Community Services,Revenue,Premises Related Expenditure
http://thanet.gov.uk/supplierspend,Thanet District Council,11/07/2014,364183,4873.96,Mears Ltd,MEA003,Director of Corporate Services and Transformation,Balance Sheet,Current Assets
http://thanet.gov.uk/supplierspend,Thanet District Council,11/07/2014,364495,590.50,New Tech Security Ltd,NEW027,Director Of Operational Services,Revenue,Supplies and Services
http://thanet.gov.uk/supplierspend,Thanet District Council,11/07/2014,364672,441.61,Npower Limited,NPO001,Director Of Community Services,Revenue,Premises Related Expenditure
http://thanet.gov.uk/supplierspend,Thanet District Council,11/07/2014,364745,5287.42,Precept Cs Ltd,PRE032,Director of Corporate Services and Transformation,Balance Sheet,Long Term Assets
http://thanet.gov.uk/supplierspend,Thanet District Council,11/07/2014,364752,11304.00,Precept Cs Ltd,PRE032,Director of Corporate Services and Transformation,Balance Sheet,Long Term Assets
http://thanet.gov.uk/supplierspend,Thanet District Council,11/07/2014,364092,2060.79,Sellick Partnership Group Ltd,SEL011,Director of Corporate Services and Transformation,Revenue,Supplies and Services
http://thanet.gov.uk/supplierspend,Thanet District Council,11/07/2014,364458,1072.50,Sellick Partnership Group Ltd,SEL011,Director of Corporate Services and Transformation,Revenue,Supplies and Services
http://thanet.gov.uk/supplierspend,Thanet District Council,11/07/2014,364426,314.82,Southern Electric,SEL007,Director Of Operational Services,Revenue,Premises Related Expenditure
http://thanet.gov.uk/supplierspend,Thanet District Council,11/07/2014,364427,1468.49,Southern Electric,SEL007,Director Of Community Services,Revenue,Premises Related Expenditure
http://thanet.gov.uk/supplierspend,Thanet District Council,11/07/2014,358840,12479.52,Southern Water,SWA001,Director Of Operational Services,Revenue,Premises Related Expenditure
http://thanet.gov.uk/supplierspend,Thanet District Council,11/07/2014,363844,3772.71,Southern Water,SWA001,Director Of Operational Services,Revenue,Premises Related Expenditure
http://thanet.gov.uk/supplierspend,Thanet District Council,11/07/2014,364669,-8139.19,Southern Water,SWA001,Director Of Operational Services,Revenue,Premises Related Expenditure
http://thanet.gov.uk/supplierspend,Thanet District Council,11/07/2014,364479,312.00,Thanet Safe Limited,TSA004,Director Of Community Services,Revenue,Supplies and Services
http://thanet.gov.uk/supplierspend,Thanet District Council,11/07/2014,364486,1200.00,W Brazil & Bros,BRA001,Director of Corporate Services and Transformation,Balance Sheet,Current Assets
http://thanet.gov.uk/supplierspend,Thanet District Council,11/07/2014,364487,600.00,W Brazil & Bros,BRA001,Director of Corporate Services and Transformation,Balance Sheet,Current Assets
http://thanet.gov.uk/supplierspend,Thanet District Council,11/07/2014,364488,1500.00,W Brazil & Bros,BRA001,Director of Corporate Services and Transformation,Balance Sheet,Current Assets
http://thanet.gov.uk/supplierspend,Thanet District Council,11/07/2014,364489,380.00,W Brazil & Bros,BRA001,Director of Corporate Services and Transformation,Balance Sheet,Current Assets
http://thanet.gov.uk/supplierspend,Thanet District Council,11/07/2014,364490,280.00,W Brazil & Bros,BRA001,Director of Corporate Services and Transformation,Balance Sheet,Current Assets
http://thanet.gov.uk/supplierspend,Thanet District Council,11/07/2014,364285,5130.35,Waste Consulting Llp,WAS005,Director Of Operational Services,Revenue,Supplies and Services
http://thanet.gov.uk/supplierspend,Thanet District Council,15/07/2014,364279,900.00,Advanced Business Solutions,COA011,Director of Corporate Services and Transformation,Revenue,Supplies and Services
http://thanet.gov.uk/supplierspend,Thanet District Council,15/07/2014,364908,423.41,Allstar Business Solutions Ltd,ALL038,Director Of Operational Services,Revenue,Transport Related Expenditure
http://thanet.gov.uk/supplierspend,Thanet District Council,15/07/2014,364194,697.50,Andy Morris,MOR028,Director Of Community Services,Revenue,Supplies and Services
http://thanet.gov.uk/supplierspend,Thanet District Council,15/07/2014,364712,247.25,Ate (Uk) Limited,ANG014,Director Of Operational Services,Revenue,Transport Related Expenditure
http://thanet.gov.uk/supplierspend,Thanet District Council,15/07/2014,364466,218.50,Bowman Maintenance Contracting,BMC001,Director Of Operational Services,Revenue,Premises Related Expenditure
http://thanet.gov.uk/supplierspend,Thanet District Council,15/07/2014,364466,300.00,Bowman Maintenance Contracting,BMC001,Director Of Operational Services,Revenue,Supplies and Services
http://thanet.gov.uk/supplierspend,Thanet District Council,15/07/2014,364759,261.17,Capt G Tully,TUL001,Director Of Operational Services,Revenue,Supplies and Services
http://thanet.gov.uk/supplierspend,Thanet District Council,15/07/2014,364841,230.00,Chatterbox Ltd,CHA006,East Kent Shared Services,Revenue,Supplies and Services
http://thanet.gov.uk/supplierspend,Thanet District Council,15/07/2014,364613,227.33,Data Integration,DAT006,East Kent Shared Services,Revenue,Supplies and Services
http://thanet.gov.uk/supplierspend,Thanet District Council,15/07/2014,364798,2075.00,Dr R K Chhabra,CHH001,Director Of Operational Services,Revenue,Supplies and Services
http://thanet.gov.uk/supplierspend,Thanet District Council,15/07/2014,364252,5232.00,Fuel Oils Kent,FUE001,Director Of Operational Services,Revenue,Supplies and Services
http://thanet.gov.uk/supplierspend,Thanet District Council,15/07/2014,364639,300.00,George Mccabe,MCC001,Director Of Operational Services,Revenue,Premises Related Expenditure
http://thanet.gov.uk/supplierspend,Thanet District Council,15/07/2014,364701,145.72,Holbrook Revell Electrical Ltd,HOL015,Director of Corporate Services and Transformation,Balance Sheet,Current Assets
http://thanet.gov.uk/supplierspend,Thanet District Council,15/07/2014,364701,3790.95,Holbrook Revell Electrical Ltd,HOL015,Director Of Operational Services,Revenue,Premises Related Expenditure
http://thanet.gov.uk/supplierspend,Thanet District Council,15/07/2014,364702,136.25,Holbrook Revell Electrical Ltd,HOL015,Director of Corporate Services and Transformation,Balance Sheet,Current Assets
http://thanet.gov.uk/supplierspend,Thanet District Council,15/07/2014,364702,1872.39,Holbrook Revell Electrical Ltd,HOL015,Director Of Operational Services,Revenue,Premises Related Expenditure
http://thanet.gov.uk/supplierspend,Thanet District Council,15/07/2014,364577,1750.00,Holt & Wotton Ltd,HOL001,Director of Corporate Services and Transformation,Balance Sheet,Current Assets
http://thanet.gov.uk/supplierspend,Thanet District Council,15/07/2014,364579,350.00,Holt & Wotton Ltd,HOL001,Director of Corporate Services and Transformation,Balance Sheet,Current Assets
http://thanet.gov.uk/supplierspend,Thanet District Council,15/07/2014,365004,26875.76,Idox Software  Limited,IDO001,Director Of Community Services,Revenue,Supplies and Services
http://thanet.gov.uk/supplierspend,Thanet District Council,15/07/2014,365005,6480.56,Idox Software  Limited,IDO001,Director Of Community Services,Revenue,Supplies and Services
http://thanet.gov.uk/supplierspend,Thanet District Council,15/07/2014,365006,-1241.35,Idox Software  Limited,IDO001,Director Of Community Services,Revenue,Supplies and Services
http://thanet.gov.uk/supplierspend,Thanet District Council,15/07/2014,365007,-635.25,Idox Software  Limited,IDO001,Director Of Community Services,Revenue,Supplies and Services
http://thanet.gov.uk/supplierspend,Thanet District Council,15/07/2014,364215,4081.45,Institute For Sustainability,INS028,Director Of Operational Services,Revenue,Supplies and Services
http://thanet.gov.uk/supplierspend,Thanet District Council,15/07/2014,363580,300.00,Ipc Media Ltd,IPC001,Director Of Operational Services,Revenue,Supplies and Services
http://thanet.gov.uk/supplierspend,Thanet District Council,15/07/2014,364103,1300.00,J Breheny Contractors Ltd,BRE002,Director of Corporate Services and Transformation,Balance Sheet,Long Term Assets
http://thanet.gov.uk/supplierspend,Thanet District Council,15/07/2014,364104,926.28,J Breheny Contractors Ltd,BRE002,Director of Corporate Services and Transformation,Balance Sheet,Long Term Assets
http://thanet.gov.uk/supplierspend,Thanet District Council,15/07/2014,364685,240.00,John Reeve (Plant Hire) Ltd,REE013,Director Of Operational Services,Revenue,Transport Related Expenditure
http://thanet.gov.uk/supplierspend,Thanet District Council,15/07/2014,364694,690.00,John Reeve (Plant Hire) Ltd,REE013,Director Of Operational Services,Revenue,Transport Related Expenditure
http://thanet.gov.uk/supplierspend,Thanet District Council,15/07/2014,364778,333.00,John Reeve (Plant Hire) Ltd,REE013,Director Of Operational Services,Revenue,Transport Related Expenditure
http://thanet.gov.uk/supplierspend,Thanet District Council,15/07/2014,364474,1350.00,Kenhire Limited,KEN042,Director Of Operational Services,Revenue,Transport Related Expenditure
http://thanet.gov.uk/supplierspend,Thanet District Council,15/07/2014,364475,660.00,Kenhire Limited,KEN042,Director Of Operational Services,Revenue,Transport Related Expenditure
http://thanet.gov.uk/supplierspend,Thanet District Council,15/07/2014,364064,15000.00,Kent County Council,KCC002,Director Of Operational Services,Revenue,Supplies and Services
http://thanet.gov.uk/supplierspend,Thanet District Council,15/07/2014,364030,-1040.72,Kent County Council (Kcs),KCC003,Director Of Operational Services,Revenue,Premises Related Expenditure
http://thanet.gov.uk/supplierspend,Thanet District Council,15/07/2014,364031,-450.20,Kent County Council (Kcs),KCC003,Director Of Operational Services,Revenue,Premises Related Expenditure
http://thanet.gov.uk/supplierspend,Thanet District Council,15/07/2014,364032,-752.53,Kent County Council (Kcs),KCC003,Director Of Operational Services,Revenue,Premises Related Expenditure
http://thanet.gov.uk/supplierspend,Thanet District Council,15/07/2014,364901,1605.39,Kent County Council (Kcs),KCC003,Director Of Operational Services,Revenue,Premises Related Expenditure
http://thanet.gov.uk/supplierspend,Thanet District Council,15/07/2014,364902,5015.17,Kent County Council (Kcs),KCC003,Director Of Operational Services,Revenue,Premises Related Expenditure
http://thanet.gov.uk/supplierspend,Thanet District Council,15/07/2014,364903,5482.10,Kent County Council (Kcs),KCC003,Director Of Operational Services,Revenue,Premises Related Expenditure
http://thanet.gov.uk/supplierspend,Thanet District Council,15/07/2014,364706,1833.33,Modern Mindset Ltd,MOD004,Director Of Community Services,Revenue,Supplies and Services
http://thanet.gov.uk/supplierspend,Thanet District Council,15/07/2014,364628,320.00,North West Kent College,NOR007,Director Of Operational Services,Revenue,Employees
http://thanet.gov.uk/supplierspend,Thanet District Council,15/07/2014,363869,818.34,Ocs Group Uk Ltd T/A Fountains,OCS005,Director of Corporate Services and Transformation,Balance Sheet,Current Assets
http://thanet.gov.uk/supplierspend,Thanet District Council,15/07/2014,364956,240.00,Pier Rigging And Testing Limited,PIE008,Director Of Operational Services,Revenue,Supplies and Services
http://thanet.gov.uk/supplierspend,Thanet District Council,15/07/2014,364677,1310.00,Rackspace Limited,RAC006,East Kent Shared Services,Revenue,Supplies and Services
http://thanet.gov.uk/supplierspend,Thanet District Council,15/07/2014,364710,328.20,Seasafe Systems Ltd,SEA004,Director Of Operational Services,Revenue,Supplies and Services
http://thanet.gov.uk/supplierspend,Thanet District Council,15/07/2014,364106,780.00,Shaw Electrical,SHA005,Director Of Operational Services,Revenue,Premises Related Expenditure
http://thanet.gov.uk/supplierspend,Thanet District Council,15/07/2014,364826,588.00,Shaw Electrical,SHA005,Director Of Operational Services,Revenue,Premises Related Expenditure
http://thanet.gov.uk/supplierspend,Thanet District Council,15/07/2014,364850,441.00,Shaw Electrical,SHA005,Director Of Operational Services,Revenue,Premises Related Expenditure
http://thanet.gov.uk/supplierspend,Thanet District Council,15/07/2014,364703,2259.40,Shoreline Surveys Limited,SHO001,Director Of Operational Services,Revenue,Premises Related Expenditure
http://thanet.gov.uk/supplierspend,Thanet District Council,15/07/2014,364269,700.00,South East Employers,SEE001,Director of Corporate Services and Transformation,Revenue,Supplies and Services
http://thanet.gov.uk/supplierspend,Thanet District Council,15/07/2014,364719,215.51,Southern Electric,SEL007,Director Of Operational Services,Revenue,Premises Related Expenditure
http://thanet.gov.uk/supplierspend,Thanet District Council,15/07/2014,364720,263.95,Southern Electric,SEL007,Director Of Operational Services,Revenue,Premises Related Expenditure
http://thanet.gov.uk/supplierspend,Thanet District Council,15/07/2014,364791,275.28,Southern Electric,SEL007,Director of Corporate Services and Transformation,Revenue,Premises Related Expenditure
http://thanet.gov.uk/supplierspend,Thanet District Council,15/07/2014,364791,4.56,Southern Electric,SEL007,Director Of Community Services,Revenue,Premises Related Expenditure
http://thanet.gov.uk/supplierspend,Thanet District Council,15/07/2014,364791,199.03,Southern Electric,SEL007,Director Of Operational Services,Revenue,Premises Related Expenditure
http://thanet.gov.uk/supplierspend,Thanet District Council,15/07/2014,364829,251.56,Southern Water,SWA001,Director Of Operational Services,Revenue,Premises Related Expenditure
http://thanet.gov.uk/supplierspend,Thanet District Council,15/07/2014,364830,519.23,Southern Water,SWA001,Director Of Operational Services,Revenue,Premises Related Expenditure
http://thanet.gov.uk/supplierspend,Thanet District Council,15/07/2014,364835,-1956.26,Southern Water,SWA001,Director Of Operational Services,Revenue,Premises Related Expenditure
http://thanet.gov.uk/supplierspend,Thanet District Council,15/07/2014,364927,465.38,Southern Water,SWA001,Director Of Community Services,Revenue,Premises Related Expenditure
http://thanet.gov.uk/supplierspend,Thanet District Council,15/07/2014,364927,944.87,Southern Water,SWA001,Director Of Operational Services,Revenue,Premises Related Expenditure
http://thanet.gov.uk/supplierspend,Thanet District Council,15/07/2014,364928,1326.55,Southern Water,SWA001,Director Of Operational Services,Revenue,Premises Related Expenditure
http://thanet.gov.uk/supplierspend,Thanet District Council,15/07/2014,364929,273.97,Southern Water,SWA001,Director Of Operational Services,Revenue,Premises Related Expenditure
http://thanet.gov.uk/supplierspend,Thanet District Council,15/07/2014,363541,2689.00,Swale Shutter & Door Services Ltd,SWA013,Director Of Operational Services,Revenue,Supplies and Services
http://thanet.gov.uk/supplierspend,Thanet District Council,15/07/2014,364206,400.00,Swale Shutter & Door Services Ltd,SWA013,Director Of Operational Services,Revenue,Supplies and Services
http://thanet.gov.uk/supplierspend,Thanet District Council,15/07/2014,364896,247.17,Viridor Waste Management Ltd,VIR003,Director Of Operational Services,Revenue,Third Party Payments
http://thanet.gov.uk/supplierspend,Thanet District Council,15/07/2014,364222,303.00,Westbury Industrial Supplies Ltd,WES042,Director Of Operational Services,Revenue,Supplies and Services
http://thanet.gov.uk/supplierspend,Thanet District Council,16/07/2014,364467,4256.90,Ats Euromaster Ltd,ATS002,Director Of Operational Services,Revenue,Transport Related Expenditure
http://thanet.gov.uk/supplierspend,Thanet District Council,16/07/2014,364594,810.00,Bureau Veritas Uk Ltd,BUR022,Director of Corporate Services and Transformation,Revenue,Supplies and Services
http://thanet.gov.uk/supplierspend,Thanet District Council,16/07/2014,364599,792.00,Disclosure And Barring Service,DIS017,Director of Corporate Services and Transformation,Revenue,Supplies and Services
http://thanet.gov.uk/supplierspend,Thanet District Council,16/07/2014,364764,1556.80,Egbert H Taylor & Company Ltd,TAY005,Director Of Operational Services,Revenue,Supplies and Services
http://thanet.gov.uk/supplierspend,Thanet District Council,16/07/2014,364919,1556.80,Egbert H Taylor & Company Ltd,TAY005,Director Of Operational Services,Revenue,Supplies and Services
http://thanet.gov.uk/supplierspend,Thanet District Council,16/07/2014,364920,1556.80,Egbert H Taylor & Company Ltd,TAY005,Director Of Operational Services,Revenue,Supplies and Services
http://thanet.gov.uk/supplierspend,Thanet District Council,16/07/2014,364251,787.38,Ernest Doe & Sons Ltd,ERN003,Director Of Operational Services,Revenue,Supplies and Services
http://thanet.gov.uk/supplierspend,Thanet District Council,16/07/2014,364464,772.00,Estuary Services Ltd,EST002,Director Of Operational Services,Revenue,Transport Related Expenditure
http://thanet.gov.uk/supplierspend,Thanet District Council,16/07/2014,363862,5566.65,Fuel Oils Kent,FUE001,Director Of Operational Services,Revenue,Supplies and Services
http://thanet.gov.uk/supplierspend,Thanet District Council,16/07/2014,364585,234.63,Greenham,GRE001,Director Of Community Services,Revenue,Premises Related Expenditure
http://thanet.gov.uk/supplierspend,Thanet District Council,16/07/2014,364837,327.49,Hilton Cabinet Co Ltd,HIL002,Director Of Operational Services,Revenue,Supplies and Services
http://thanet.gov.uk/supplierspend,Thanet District Council,16/07/2014,364611,555.45,Hr Go Recruitment Ltd,HRG002,Director Of Operational Services,Revenue,Employees
http://thanet.gov.uk/supplierspend,Thanet District Council,16/07/2014,364612,10094.15,Hr Go Recruitment Ltd,HRG002,Director Of Operational Services,Revenue,Employees
http://thanet.gov.uk/supplierspend,Thanet District Council,16/07/2014,364629,8557.13,Hr Go Recruitment Ltd,HRG002,Director Of Operational Services,Revenue,Employees
http://thanet.gov.uk/supplierspend,Thanet District Council,16/07/2014,364630,525.00,Hr Go Recruitment Ltd,HRG002,East Kent Shared Services,Revenue,Employees
http://thanet.gov.uk/supplierspend,Thanet District Council,16/07/2014,364631,6088.80,Hr Go Recruitment Ltd,HRG002,Director Of Operational Services,Revenue,Employees
http://thanet.gov.uk/supplierspend,Thanet District Council,16/07/2014,364582,1536.00,Idox Software  Limited,IDO001,Director Of Community Services,Revenue,Supplies and Services
http://thanet.gov.uk/supplierspend,Thanet District Council,16/07/2014,364584,1130.00,Kent County Council,KCC002,Director of Corporate Services and Transformation,Revenue,Supplies and Services
http://thanet.gov.uk/supplierspend,Thanet District Council,16/07/2014,364697,23412.96,Kent County Council (Kcs),KCC003,Director Of Operational Services,Revenue,Transport Related Expenditure
http://thanet.gov.uk/supplierspend,Thanet District Council,16/07/2014,364714,755.00,Komarni,KOM002,Director Of Community Services,Revenue,Supplies and Services
http://thanet.gov.uk/supplierspend,Thanet District Council,16/07/2014,364244,290.00,M D Electrics,MDE001,Director Of Operational Services,Revenue,Premises Related Expenditure
http://thanet.gov.uk/supplierspend,Thanet District Council,16/07/2014,364245,600.00,M D Electrics,MDE001,Director Of Operational Services,Revenue,Premises Related Expenditure
http://thanet.gov.uk/supplierspend,Thanet District Council,16/07/2014,364813,1241.75,Med Clean South Ltd,MED015,Director Of Operational Services,Revenue,Premises Related Expenditure
http://thanet.gov.uk/supplierspend,Thanet District Council,16/07/2014,364815,5531.39,Med Clean South Ltd,MED015,Director Of Operational Services,Revenue,Premises Related Expenditure
http://thanet.gov.uk/supplierspend,Thanet District Council,16/07/2014,365145,775.00,Moriyama Limited,MOR031,East Kent Shared Services,Revenue,Employees
http://thanet.gov.uk/supplierspend,Thanet District Council,16/07/2014,364020,392.78,Ocs Group Uk Ltd T/A Fountains,OCS005,Director Of Community Services,Revenue,Premises Related Expenditure
http://thanet.gov.uk/supplierspend,Thanet District Council,16/07/2014,364679,1365.00,Ovenden Plant Hire Ltd,OVE002,Director Of Operational Services,Revenue,Transport Related Expenditure
http://thanet.gov.uk/supplierspend,Thanet District Council,16/07/2014,365147,238.00,Professional Conferences,PRO005,Director of Corporate Services and Transformation,Revenue,Supplies and Services
http://thanet.gov.uk/supplierspend,Thanet District Council,16/07/2014,364036,21252.50,Profile Security Services Limited,PRO018,Director Of Operational Services,Revenue,Supplies and Services
http://thanet.gov.uk/supplierspend,Thanet District Council,16/07/2014,364019,420.00,R Cannon,CAN007,Director Of Operational Services,Revenue,Supplies and Services
http://thanet.gov.uk/supplierspend,Thanet District Council,16/07/2014,364484,385.00,R Cannon,CAN007,Director Of Operational Services,Revenue,Supplies and Services
http://thanet.gov.uk/supplierspend,Thanet District Council,16/07/2014,364625,577.50,R Cannon,CAN007,Director Of Operational Services,Revenue,Supplies and Services
http://thanet.gov.uk/supplierspend,Thanet District Council,16/07/2014,364776,2436.00,Riverside Truck Rental Limited,RIV005,Director of Corporate Services and Transformation,Balance Sheet,Long Term Assets
http://thanet.gov.uk/supplierspend,Thanet District Council,16/07/2014,364823,580.98,Sba Ltd,SBA001,Director Of Operational Services,Revenue,Supplies and Services
http://thanet.gov.uk/supplierspend,Thanet District Council,16/07/2014,364736,2181.83,Sellick Partnership Group Ltd,SEL011,Director of Corporate Services and Transformation,Revenue,Supplies and Services
http://thanet.gov.uk/supplierspend,Thanet District Council,16/07/2014,364737,900.00,Sellick Partnership Group Ltd,SEL011,Director Of Community Services,Revenue,Supplies and Services
http://thanet.gov.uk/supplierspend,Thanet District Council,16/07/2014,364067,7779.53,Shoreline Surveys Limited,SHO001,Director Of Operational Services,Revenue,Premises Related Expenditure
http://thanet.gov.uk/supplierspend,Thanet District Council,16/07/2014,364624,300.00,St Paul'S Church Pcc,STP011,Director of Corporate Services and Transformation,Revenue,Premises Related Expenditure
http://thanet.gov.uk/supplierspend,Thanet District Council,16/07/2014,364810,366.60,Terberg Matec Uk Limited,TER010,Director Of Operational Services,Revenue,Transport Related Expenditure
http://thanet.gov.uk/supplierspend,Thanet District Council,16/07/2014,364273,380.00,W Brazil & Bros,BRA001,Director Of Operational Services,Revenue,Premises Related Expenditure
http://thanet.gov.uk/supplierspend,Thanet District Council,16/07/2014,364274,480.00,W Brazil & Bros,BRA001,Director Of Operational Services,Revenue,Premises Related Expenditure
http://thanet.gov.uk/supplierspend,Thanet District Council,16/07/2014,364277,720.00,W Brazil & Bros,BRA001,Director Of Operational Services,Revenue,Premises Related Expenditure
http://thanet.gov.uk/supplierspend,Thanet District Council,16/07/2014,364690,300.00,W Brazil & Bros,BRA001,Director Of Operational Services,Revenue,Transport Related Expenditure
http://thanet.gov.uk/supplierspend,Thanet District Council,16/07/2014,364691,460.00,W Brazil & Bros,BRA001,Director Of Operational Services,Revenue,Premises Related Expenditure
http://thanet.gov.uk/supplierspend,Thanet District Council,16/07/2014,364742,240.00,W Brazil & Bros,BRA001,Director Of Operational Services,Revenue,Supplies and Services
http://thanet.gov.uk/supplierspend,Thanet District Council,18/07/2014,365263,83833.54,Enterprise (Aol) Limited,ENT011,Director of Corporate Services and Transformation,Balance Sheet,Long Term Assets
http://thanet.gov.uk/supplierspend,Thanet District Council,18/07/2014,365270,258304.00,Kent & Medway Towns Fire Authority,KMT001,Director of Corporate Services and Transformation,Balance Sheet,Reserves
http://thanet.gov.uk/supplierspend,Thanet District Council,18/07/2014,365272,3812183.00,Kent County Council,KCC022,Director of Corporate Services and Transformation,Balance Sheet,Reserves
http://thanet.gov.uk/supplierspend,Thanet District Council,18/07/2014,364985,23634.60,Kent County Council (Kcs),KCC003,Director Of Operational Services,Revenue,Transport Related Expenditure
http://thanet.gov.uk/supplierspend,Thanet District Council,18/07/2014,365271,482313.50,Kent Police & Crime Commissioner,KPA003,Director of Corporate Services and Transformation,Balance Sheet,Reserves
http://thanet.gov.uk/supplierspend,Thanet District Council,18/07/2014,N/A,415.98,REDACTED PERSONAL DATA,N/A,Director Of Operational Services,Revenue,Transport Related Expenditure
http://thanet.gov.uk/supplierspend,Thanet District Council,18/07/2014,N/A,1161.63,REDACTED PERSONAL DATA,N/A,East Kent Shared Services,Revenue,Transport Related Expenditure
http://thanet.gov.uk/supplierspend,Thanet District Council,18/07/2014,N/A,276.06,REDACTED PERSONAL DATA,N/A,Director Of Operational Services,Revenue,Transport Related Expenditure
http://thanet.gov.uk/supplierspend,Thanet District Council,18/07/2014,N/A,292.13,REDACTED PERSONAL DATA,N/A,East Kent Shared Services,Revenue,Transport Related Expenditure
http://thanet.gov.uk/supplierspend,Thanet District Council,18/07/2014,N/A,412.19,REDACTED PERSONAL DATA,N/A,Director Of Community Services,Revenue,Transport Related Expenditure
http://thanet.gov.uk/supplierspend,Thanet District Council,18/07/2014,N/A,350.74,REDACTED PERSONAL DATA,N/A,Director Of Operational Services,Revenue,Transport Related Expenditure
http://thanet.gov.uk/supplierspend,Thanet District Council,18/07/2014,N/A,284.57,REDACTED PERSONAL DATA,N/A,Director of Corporate Services and Transformation,Revenue,Transport Related Expenditure
http://thanet.gov.uk/supplierspend,Thanet District Council,18/07/2014,N/A,325.22,REDACTED PERSONAL DATA,N/A,Director of Corporate Services and Transformation,Revenue,Transport Related Expenditure
http://thanet.gov.uk/supplierspend,Thanet District Council,18/07/2014,N/A,317.65,REDACTED PERSONAL DATA,N/A,Director Of Community Services,Revenue,Transport Related Expenditure
http://thanet.gov.uk/supplierspend,Thanet District Council,18/07/2014,N/A,286.46,REDACTED PERSONAL DATA,N/A,Director of Corporate Services and Transformation,Revenue,Transport Related Expenditure
http://thanet.gov.uk/supplierspend,Thanet District Council,18/07/2014,N/A,382.89,REDACTED PERSONAL DATA,N/A,Director of Corporate Services and Transformation,Revenue,Transport Related Expenditure
http://thanet.gov.uk/supplierspend,Thanet District Council,18/07/2014,N/A,392.79,REDACTED PERSONAL DATA,N/A,Director Of Community Services,Revenue,Transport Related Expenditure
http://thanet.gov.uk/supplierspend,Thanet District Council,18/07/2014,N/A,272.28,REDACTED PERSONAL DATA,N/A,Director Of Operational Services,Revenue,Transport Related Expenditure
http://thanet.gov.uk/supplierspend,Thanet District Council,18/07/2014,N/A,411.25,REDACTED PERSONAL DATA,N/A,East Kent Shared Services,Revenue,Transport Related Expenditure
http://thanet.gov.uk/supplierspend,Thanet District Council,18/07/2014,N/A,254.31,REDACTED PERSONAL DATA,N/A,Director Of Community Services,Revenue,Transport Related Expenditure
http://thanet.gov.uk/supplierspend,Thanet District Council,18/07/2014,N/A,292.15,REDACTED PERSONAL DATA,N/A,Director Of Community Services,Revenue,Supplies and Services
http://thanet.gov.uk/supplierspend,Thanet District Council,18/07/2014,N/A,450.01,REDACTED PERSONAL DATA,N/A,East Kent Shared Services,Revenue,Transport Related Expenditure
http://thanet.gov.uk/supplierspend,Thanet District Council,18/07/2014,N/A,336.56,REDACTED PERSONAL DATA,N/A,East Kent Shared Services,Revenue,Transport Related Expenditure
http://thanet.gov.uk/supplierspend,Thanet District Council,18/07/2014,N/A,388.56,REDACTED PERSONAL DATA,N/A,East Kent Shared Services,Revenue,Transport Related Expenditure
http://thanet.gov.uk/supplierspend,Thanet District Council,18/07/2014,364993,399.75,Silgo Lubricants Ltd,SIL007,Director Of Operational Services,Revenue,Transport Related Expenditure
http://thanet.gov.uk/supplierspend,Thanet District Council,18/07/2014,364953,818.92,W G Burbridge,BUR016,Director Of Operational Services,Revenue,Premises Related Expenditure
http://thanet.gov.uk/supplierspend,Thanet District Council,22/07/2014,365394,252.81,Advanced Business Solutions,COA011,Director of Corporate Services and Transformation,Revenue,Supplies and Services
http://thanet.gov.uk/supplierspend,Thanet District Council,22/07/2014,364120,326.80,All Access Ltd,ALL031,Director of Corporate Services and Transformation,Balance Sheet,Current Assets
http://thanet.gov.uk/supplierspend,Thanet District Council,22/07/2014,364122,473.00,All Access Ltd,ALL031,Director of Corporate Services and Transformation,Balance Sheet,Current Assets
http://thanet.gov.uk/supplierspend,Thanet District Council,22/07/2014,365396,644.12,Allstar Business Solutions Ltd,ALL038,Director Of Operational Services,Revenue,Transport Related Expenditure
http://thanet.gov.uk/supplierspend,Thanet District Council,22/07/2014,364241,222.04,Andrews & Elliott,AND001,Director Of Operational Services,Revenue,Premises Related Expenditure
http://thanet.gov.uk/supplierspend,Thanet District Council,22/07/2014,364911,265.00,Archant Kos Media,ARC007,Director Of Community Services,Revenue,Supplies and Services
http://thanet.gov.uk/supplierspend,Thanet District Council,22/07/2014,364853,1000.00,Architectural Archaelogy,ARC011,Director Of Operational Services,Revenue,Supplies and Services
http://thanet.gov.uk/supplierspend,Thanet District Council,22/07/2014,365419,6490.00,Bramling Construction Ltd,BRA020,Director of Corporate Services and Transformation,Balance Sheet,Long Term Assets
http://thanet.gov.uk/supplierspend,Thanet District Council,22/07/2014,365421,6315.00,Bramling Construction Ltd,BRA020,Director of Corporate Services and Transformation,Balance Sheet,Long Term Assets
http://thanet.gov.uk/supplierspend,Thanet District Council,22/07/2014,364921,1591.36,Bridge Security Cctv Ltd,BRI039,Director Of Operational Services,Revenue,Supplies and Services
http://thanet.gov.uk/supplierspend,Thanet District Council,22/07/2014,364922,1548.00,Bridge Security Cctv Ltd,BRI039,Director Of Community Services,Revenue,Supplies and Services
http://thanet.gov.uk/supplierspend,Thanet District Council,22/07/2014,364923,700.00,Bridge Security Cctv Ltd,BRI039,Director Of Operational Services,Revenue,Supplies and Services
http://thanet.gov.uk/supplierspend,Thanet District Council,22/07/2014,364590,2729.67,Canterbury Christ Church University,CAN006,Director Of Community Services,Revenue,Supplies and Services
http://thanet.gov.uk/supplierspend,Thanet District Council,22/07/2014,364591,2729.67,Canterbury Christ Church University,CAN006,Director Of Community Services,Revenue,Supplies and Services
http://thanet.gov.uk/supplierspend,Thanet District Council,22/07/2014,364825,807.59,Canterbury City Council,CAN004,Director of Corporate Services and Transformation,Balance Sheet,Long Term Assets
http://thanet.gov.uk/supplierspend,Thanet District Council,22/07/2014,364842,115000.00,Channel Commercials Plc,CCO001,Director of Corporate Services and Transformation,Balance Sheet,Long Term Assets
http://thanet.gov.uk/supplierspend,Thanet District Council,22/07/2014,364844,115000.00,Channel Commercials Plc,CCO001,Director of Corporate Services and Transformation,Balance Sheet,Long Term Assets
http://thanet.gov.uk/supplierspend,Thanet District Council,22/07/2014,364657,392.18,Cobalt Telephone Technologies Ltd,COB002,Director Of Operational Services,Revenue,Supplies and Services
http://thanet.gov.uk/supplierspend,Thanet District Council,22/07/2014,364916,875.00,Cobalt Telephone Technologies Ltd,COB002,Director Of Operational Services,Revenue,Supplies and Services
http://thanet.gov.uk/supplierspend,Thanet District Council,22/07/2014,365426,6780.00,Connoisseur Renovations,CON037,Director of Corporate Services and Transformation,Balance Sheet,Long Term Assets
http://thanet.gov.uk/supplierspend,Thanet District Council,22/07/2014,365402,50317.50,D C L G,DCL002,Director of Corporate Services and Transformation,Balance Sheet,Reserves
http://thanet.gov.uk/supplierspend,Thanet District Council,22/07/2014,365223,41873.49,Dcb (Kent) Ltd,DCB001,Director of Corporate Services and Transformation,Balance Sheet,Current Assets
http://thanet.gov.uk/supplierspend,Thanet District Council,22/07/2014,365422,1900.00,Dolphin Lifts Kent,DOL003,Director of Corporate Services and Transformation,Balance Sheet,Long Term Assets
http://thanet.gov.uk/supplierspend,Thanet District Council,22/07/2014,365425,4700.00,Dolphin Lifts Kent,DOL003,Director of Corporate Services and Transformation,Balance Sheet,Long Term Assets
http://thanet.gov.uk/supplierspend,Thanet District Council,22/07/2014,364799,399.00,Downfast Demolition & Salvage Ltd,DOW001,Director of Corporate Services and Transformation,Balance Sheet,Current Assets
http://thanet.gov.uk/supplierspend,Thanet District Council,22/07/2014,364897,581.13,Envirovent Ltd,ENV017,Director of Corporate Services and Transformation,Balance Sheet,Current Assets
http://thanet.gov.uk/supplierspend,Thanet District Council,22/07/2014,364965,730.18,Envirovent Ltd,ENV017,Director of Corporate Services and Transformation,Balance Sheet,Current Assets
http://thanet.gov.uk/supplierspend,Thanet District Council,22/07/2014,364962,469.90,Evergreen Landscaping Gardening Ltd,EVE004,Director Of Operational Services,Revenue,Premises Related Expenditure
http://thanet.gov.uk/supplierspend,Thanet District Council,22/07/2014,365291,5287.50,Faithorn Farrell Timms Llp,FAI007,Director of Corporate Services and Transformation,Balance Sheet,Current Assets
http://thanet.gov.uk/supplierspend,Thanet District Council,22/07/2014,365418,1261.49,Family Mosaic Housing,FAM001,Director of Corporate Services and Transformation,Balance Sheet,Long Term Assets
http://thanet.gov.uk/supplierspend,Thanet District Council,22/07/2014,365420,782.80,Family Mosaic Housing,FAM001,Director of Corporate Services and Transformation,Balance Sheet,Long Term Assets
http://thanet.gov.uk/supplierspend,Thanet District Council,22/07/2014,365431,757.80,Family Mosaic Housing,FAM001,Director of Corporate Services and Transformation,Balance Sheet,Long Term Assets
http://thanet.gov.uk/supplierspend,Thanet District Council,22/07/2014,364726,750.00,Florence Court Hotel,FLO003,Director Of Community Services,Revenue,Supplies and Services
http://thanet.gov.uk/supplierspend,Thanet District Council,22/07/2014,364800,360.00,Florence Court Hotel,FLO003,Director Of Community Services,Revenue,Supplies and Services
http://thanet.gov.uk/supplierspend,Thanet District Council,22/07/2014,364802,900.00,Florence Court Hotel,FLO003,Director Of Community Services,Revenue,Supplies and Services
http://thanet.gov.uk/supplierspend,Thanet District Council,22/07/2014,364803,900.00,Florence Court Hotel,FLO003,Director Of Community Services,Revenue,Supplies and Services
http://thanet.gov.uk/supplierspend,Thanet District Council,22/07/2014,364822,780.00,Florence Court Hotel,FLO003,Director Of Community Services,Revenue,Supplies and Services
http://thanet.gov.uk/supplierspend,Thanet District Council,22/07/2014,364605,622.00,Frandham Boarding Kennels,FRA010,Director of Corporate Services and Transformation,Revenue,Supplies and Services
http://thanet.gov.uk/supplierspend,Thanet District Council,22/07/2014,364586,288.00,Grammer & Company Limited,GRA024,Director Of Community Services,Revenue,Supplies and Services
http://thanet.gov.uk/supplierspend,Thanet District Council,22/07/2014,364626,4000.00,Hem Des Llp,HEM007,Director of Corporate Services and Transformation,Balance Sheet,Long Term Assets
http://thanet.gov.uk/supplierspend,Thanet District Council,22/07/2014,364762,17833.00,Homes & Communities Agency,HOM013,Director Of Community Services,Revenue,Supplies and Services
http://thanet.gov.uk/supplierspend,Thanet District Council,22/07/2014,364610,10997.18,Hr Go Recruitment Ltd,HRG002,Director Of Operational Services,Revenue,Employees
http://thanet.gov.uk/supplierspend,Thanet District Council,22/07/2014,365257,1387.44,Hr Go Recruitment Ltd,HRG002,Director Of Operational Services,Revenue,Employees
http://thanet.gov.uk/supplierspend,Thanet District Council,22/07/2014,365259,6588.74,Hr Go Recruitment Ltd,HRG002,Director Of Operational Services,Revenue,Employees
http://thanet.gov.uk/supplierspend,Thanet District Council,22/07/2014,365260,8056.92,Hr Go Recruitment Ltd,HRG002,Director Of Operational Services,Revenue,Employees
http://thanet.gov.uk/supplierspend,Thanet District Council,22/07/2014,365261,10089.30,Hr Go Recruitment Ltd,HRG002,Director Of Operational Services,Revenue,Employees
http://thanet.gov.uk/supplierspend,Thanet District Council,22/07/2014,364918,797.10,Ideas Unlimited,IDE001,Director Of Community Services,Revenue,Supplies and Services
http://thanet.gov.uk/supplierspend,Thanet District Council,22/07/2014,365404,3000.00,Island Events,ISL009,Director Of Community Services,Revenue,Supplies and Services
http://thanet.gov.uk/supplierspend,Thanet District Council,22/07/2014,364422,262.08,James Smith(Planning Law Servcs)Ltd,SMI043,Director Of Community Services,Revenue,Supplies and Services
http://thanet.gov.uk/supplierspend,Thanet District Council,22/07/2014,365417,711.00,John Gale,GAL001,Director of Corporate Services and Transformation,Balance Sheet,Long Term Assets
http://thanet.gov.uk/supplierspend,Thanet District Council,22/07/2014,365423,1487.40,John Gale,GAL001,Director of Corporate Services and Transformation,Balance Sheet,Long Term Assets
http://thanet.gov.uk/supplierspend,Thanet District Council,22/07/2014,365424,1198.20,John Gale,GAL001,Director of Corporate Services and Transformation,Balance Sheet,Long Term Assets
http://thanet.gov.uk/supplierspend,Thanet District Council,22/07/2014,365429,1116.24,John Gale,GAL001,Director of Corporate Services and Transformation,Balance Sheet,Long Term Assets
http://thanet.gov.uk/supplierspend,Thanet District Council,22/07/2014,365361,400.00,Joss Bay Surf Hire,JOS001,Director Of Operational Services,Revenue,Supplies and Services
http://thanet.gov.uk/supplierspend,Thanet District Council,22/07/2014,364967,1640.00,Keith Tait,TAI001,Director Of Operational Services,Revenue,Premises Related Expenditure
http://thanet.gov.uk/supplierspend,Thanet District Council,22/07/2014,365227,560.00,Kendall Cars Ltd,KEN041,Director Of Operational Services,Revenue,Transport Related Expenditure
http://thanet.gov.uk/supplierspend,Thanet District Council,22/07/2014,364845,230.00,Kent County Council,KCC002,Director of Corporate Services and Transformation,Revenue,Supplies and Services
http://thanet.gov.uk/supplierspend,Thanet District Council,22/07/2014,364986,20000.00,Kent County Council,KCC002,Director of Corporate Services and Transformation,Balance Sheet,Long Term Assets
http://thanet.gov.uk/supplierspend,Thanet District Council,22/07/2014,364470,309.20,Kent County Council (Kcs),KCC003,Director Of Operational Services,Revenue,Premises Related Expenditure
http://thanet.gov.uk/supplierspend,Thanet District Council,22/07/2014,364936,303.88,Kent County Council (Kcs),KCC003,Director Of Operational Services,Revenue,Premises Related Expenditure
http://thanet.gov.uk/supplierspend,Thanet District Council,22/07/2014,364944,390.65,Kent County Council (Kcs),KCC003,Director Of Operational Services,Revenue,Premises Related Expenditure
http://thanet.gov.uk/supplierspend,Thanet District Council,22/07/2014,364945,283.53,Kent County Council (Kcs),KCC003,Director Of Operational Services,Revenue,Premises Related Expenditure
http://thanet.gov.uk/supplierspend,Thanet District Council,22/07/2014,364946,364.11,Kent County Council (Kcs),KCC003,Director Of Operational Services,Revenue,Premises Related Expenditure
http://thanet.gov.uk/supplierspend,Thanet District Council,22/07/2014,364421,1900.00,Kpmg Llp Fees Account,KPM001,Director of Corporate Services and Transformation,Revenue,Supplies and Services
http://thanet.gov.uk/supplierspend,Thanet District Council,22/07/2014,364581,2375.00,Kudos Architectural Design & Survey,KUD001,Director Of Operational Services,Revenue,Supplies and Services
http://thanet.gov.uk/supplierspend,Thanet District Council,22/07/2014,364937,3195.00,Kudos Architectural Design & Survey,KUD001,Director of Corporate Services and Transformation,Balance Sheet,Current Assets
http://thanet.gov.uk/supplierspend,Thanet District Council,22/07/2014,365393,215.00,L G G Limited,LGG001,Director of Corporate Services and Transformation,Revenue,Supplies and Services
http://thanet.gov.uk/supplierspend,Thanet District Council,22/07/2014,364494,2822.02,Local Government Association,LGA001,Director of Corporate Services and Transformation,Revenue,Supplies and Services
http://thanet.gov.uk/supplierspend,Thanet District Council,22/07/2014,364780,750.00,Locate In Kent Limited,LOC002,Director Of Community Services,Revenue,Supplies and Services
http://thanet.gov.uk/supplierspend,Thanet District Council,22/07/2014,365407,500.00,Margate Civic Society,MCI004,Director Of Community Services,Revenue,Supplies and Services
http://thanet.gov.uk/supplierspend,Thanet District Council,22/07/2014,364483,2800.64,Meter Macs Ltd,MET014,Director Of Operational Services,Revenue,Supplies and Services
http://thanet.gov.uk/supplierspend,Thanet District Council,22/07/2014,364696,851.20,Michael A Smith,SMI044,Director of Corporate Services and Transformation,Balance Sheet,Long Term Assets
http://thanet.gov.uk/supplierspend,Thanet District Council,22/07/2014,364688,3321.00,Michael Page Int Recruitment Ltd,PAG008,Director of Corporate Services and Transformation,Revenue,Supplies and Services
http://thanet.gov.uk/supplierspend,Thanet District Council,22/07/2014,364994,3321.00,Michael Page Int Recruitment Ltd,PAG008,Director of Corporate Services and Transformation,Revenue,Supplies and Services
http://thanet.gov.uk/supplierspend,Thanet District Council,22/07/2014,364682,336.00,Mr Philip Woolfe,WOO030,Director Of Operational Services,Revenue,Supplies and Services
http://thanet.gov.uk/supplierspend,Thanet District Council,22/07/2014,364811,1800.00,Mr Rory Clarke,CLA040,Director Of Community Services,Revenue,Supplies and Services
http://thanet.gov.uk/supplierspend,Thanet District Council,22/07/2014,365428,7578.00,Northwood Builders,NOR002,Director of Corporate Services and Transformation,Balance Sheet,Long Term Assets
http://thanet.gov.uk/supplierspend,Thanet District Council,22/07/2014,364950,297.64,Orbis Protect Limited,ORB009,Director Of Community Services,Revenue,Supplies and Services
http://thanet.gov.uk/supplierspend,Thanet District Council,22/07/2014,364231,36750.00,Padstow Harbour Commissioners,PAD003,Director Of Operational Services,Revenue,Premises Related Expenditure
http://thanet.gov.uk/supplierspend,Thanet District Council,22/07/2014,364966,18726.00,Parkeon Limited,PAR063,Director Of Operational Services,Revenue,Supplies and Services
http://thanet.gov.uk/supplierspend,Thanet District Council,22/07/2014,364704,2260.60,Patrol,PAT004,Director Of Operational Services,Revenue,Supplies and Services
http://thanet.gov.uk/supplierspend,Thanet District Council,22/07/2014,362787,649.26,Phoenix Software Ltd,PHO002,East Kent Shared Services,Revenue,Supplies and Services
http://thanet.gov.uk/supplierspend,Thanet District Council,22/07/2014,363873,270.82,Phoenix Software Ltd,PHO002,East Kent Shared Services,Revenue,Supplies and Services
http://thanet.gov.uk/supplierspend,Thanet District Council,22/07/2014,364204,-649.26,Phoenix Software Ltd,PHO002,East Kent Shared Services,Revenue,Supplies and Services
http://thanet.gov.uk/supplierspend,Thanet District Council,22/07/2014,365328,53.81,Phoenix Software LtdPHO002,,East Kent Shared Services,Revenue,Supplies and Services
http://thanet.gov.uk/supplierspend,Thanet District Council,22/07/2014,365334,220.00,Puls Global Ltd,PUL006,Director Of Operational Services,Revenue,Supplies and Services
http://thanet.gov.uk/supplierspend,Thanet District Council,22/07/2014,364595,320.00,Rippleffect,RIP001,Director Of Community Services,Revenue,Supplies and Services
http://thanet.gov.uk/supplierspend,Thanet District Council,22/07/2014,365410,750.00,Royal Institute Of British Architects,ROY035,Director Of Community Services,Revenue,Supplies and Services
http://thanet.gov.uk/supplierspend,Thanet District Council,22/07/2014,364816,299.00,Seaward Color Copy Ltd,SEA001,Director Of Community Services,Revenue,Supplies and Services
http://thanet.gov.uk/supplierspend,Thanet District Council,22/07/2014,365447,400.00,Seaward Color Copy Ltd,SEA001,Director Of Community Services,Revenue,Supplies and Services
http://thanet.gov.uk/supplierspend,Thanet District Council,22/07/2014,365011,900.00,Sellick Partnership Group Ltd,SEL011,Director Of Community Services,Revenue,Supplies and Services
http://thanet.gov.uk/supplierspend,Thanet District Council,22/07/2014,365413,900.00,Sgn Connections Ltd,SGN001,Director Of Community Services,Revenue,Premises Related Expenditure
http://thanet.gov.uk/supplierspend,Thanet District Council,22/07/2014,365416,5925.00,South East Building Company Limited,SEB001,Director of Corporate Services and Transformation,Balance Sheet,Long Term Assets
http://thanet.gov.uk/supplierspend,Thanet District Council,22/07/2014,365102,588.12,Southern Water,SWA001,Director Of Operational Services,Revenue,Premises Related Expenditure
http://thanet.gov.uk/supplierspend,Thanet District Council,22/07/2014,365103,593.29,Southern Water,SWA001,Director Of Operational Services,Revenue,Premises Related Expenditure
http://thanet.gov.uk/supplierspend,Thanet District Council,22/07/2014,365112,296.09,Southern Water,SWA001,Director Of Operational Services,Revenue,Premises Related Expenditure
http://thanet.gov.uk/supplierspend,Thanet District Council,22/07/2014,365113,789.62,Southern Water,SWA001,Director Of Operational Services,Revenue,Premises Related Expenditure
http://thanet.gov.uk/supplierspend,Thanet District Council,22/07/2014,365114,402.23,Southern Water,SWA001,Director Of Operational Services,Revenue,Premises Related Expenditure
http://thanet.gov.uk/supplierspend,Thanet District Council,22/07/2014,365116,3071.70,Southern Water,SWA001,Director Of Operational Services,Revenue,Premises Related Expenditure
http://thanet.gov.uk/supplierspend,Thanet District Council,22/07/2014,365240,865.17,Sparshatts Of Kent Ltd,SPA008,Director Of Operational Services,Revenue,Transport Related Expenditure
http://thanet.gov.uk/supplierspend,Thanet District Council,22/07/2014,364711,420.00,Survey And Test,SUR015,Director Of Operational Services,Revenue,Premises Related Expenditure
http://thanet.gov.uk/supplierspend,Thanet District Council,22/07/2014,364455,808.00,Swale Heating Ltd,SWA006,Director of Corporate Services and Transformation,Balance Sheet,Current Assets
http://thanet.gov.uk/supplierspend,Thanet District Council,22/07/2014,364456,25115.54,Swale Heating Ltd,SWA006,Director of Corporate Services and Transformation,Balance Sheet,Current Assets
http://thanet.gov.uk/supplierspend,Thanet District Council,22/07/2014,364545,1546.70,Swale Heating Ltd,SWA006,Director of Corporate Services and Transformation,Balance Sheet,Current Assets
http://thanet.gov.uk/supplierspend,Thanet District Council,22/07/2014,364546,2074.32,Swale Heating Ltd,SWA006,Director of Corporate Services and Transformation,Balance Sheet,Current Assets
http://thanet.gov.uk/supplierspend,Thanet District Council,22/07/2014,364548,1878.35,Swale Heating Ltd,SWA006,Director of Corporate Services and Transformation,Balance Sheet,Current Assets
http://thanet.gov.uk/supplierspend,Thanet District Council,22/07/2014,364549,2169.80,Swale Heating Ltd,SWA006,Director of Corporate Services and Transformation,Balance Sheet,Current Assets
http://thanet.gov.uk/supplierspend,Thanet District Council,22/07/2014,364550,1546.70,Swale Heating Ltd,SWA006,Director of Corporate Services and Transformation,Balance Sheet,Current Assets
http://thanet.gov.uk/supplierspend,Thanet District Council,22/07/2014,364551,1546.70,Swale Heating Ltd,SWA006,Director of Corporate Services and Transformation,Balance Sheet,Current Assets
http://thanet.gov.uk/supplierspend,Thanet District Council,22/07/2014,364552,1546.70,Swale Heating Ltd,SWA006,Director of Corporate Services and Transformation,Balance Sheet,Current Assets
http://thanet.gov.uk/supplierspend,Thanet District Council,22/07/2014,364553,1546.70,Swale Heating Ltd,SWA006,Director of Corporate Services and Transformation,Balance Sheet,Current Assets
http://thanet.gov.uk/supplierspend,Thanet District Council,22/07/2014,364554,1913.52,Swale Heating Ltd,SWA006,Director of Corporate Services and Transformation,Balance Sheet,Current Assets
http://thanet.gov.uk/supplierspend,Thanet District Council,22/07/2014,364555,1983.87,Swale Heating Ltd,SWA006,Director of Corporate Services and Transformation,Balance Sheet,Current Assets
http://thanet.gov.uk/supplierspend,Thanet District Council,22/07/2014,364556,1747.70,Swale Heating Ltd,SWA006,Director of Corporate Services and Transformation,Balance Sheet,Current Assets
http://thanet.gov.uk/supplierspend,Thanet District Council,22/07/2014,364557,1546.70,Swale Heating Ltd,SWA006,Director of Corporate Services and Transformation,Balance Sheet,Current Assets
http://thanet.gov.uk/supplierspend,Thanet District Council,22/07/2014,364558,2210.00,Swale Heating Ltd,SWA006,Director of Corporate Services and Transformation,Balance Sheet,Current Assets
http://thanet.gov.uk/supplierspend,Thanet District Council,22/07/2014,364559,1782.87,Swale Heating Ltd,SWA006,Director of Corporate Services and Transformation,Balance Sheet,Current Assets
http://thanet.gov.uk/supplierspend,Thanet District Council,22/07/2014,364560,1546.70,Swale Heating Ltd,SWA006,Director of Corporate Services and Transformation,Balance Sheet,Current Assets
http://thanet.gov.uk/supplierspend,Thanet District Council,22/07/2014,364561,1546.70,Swale Heating Ltd,SWA006,Director of Corporate Services and Transformation,Balance Sheet,Current Assets
http://thanet.gov.uk/supplierspend,Thanet District Council,22/07/2014,364562,1543.68,Swale Heating Ltd,SWA006,Director of Corporate Services and Transformation,Balance Sheet,Current Assets
http://thanet.gov.uk/supplierspend,Thanet District Council,22/07/2014,364563,2019.05,Swale Heating Ltd,SWA006,Director of Corporate Services and Transformation,Balance Sheet,Current Assets
http://thanet.gov.uk/supplierspend,Thanet District Council,22/07/2014,364564,2903.45,Swale Heating Ltd,SWA006,Director of Corporate Services and Transformation,Balance Sheet,Current Assets
http://thanet.gov.uk/supplierspend,Thanet District Council,22/07/2014,364565,1677.35,Swale Heating Ltd,SWA006,Director of Corporate Services and Transformation,Balance Sheet,Current Assets
http://thanet.gov.uk/supplierspend,Thanet District Council,22/07/2014,364566,1749.70,Swale Heating Ltd,SWA006,Director of Corporate Services and Transformation,Balance Sheet,Current Assets
http://thanet.gov.uk/supplierspend,Thanet District Council,22/07/2014,364567,1417.05,Swale Heating Ltd,SWA006,Director of Corporate Services and Transformation,Balance Sheet,Current Assets
http://thanet.gov.uk/supplierspend,Thanet District Council,22/07/2014,364568,1216.05,Swale Heating Ltd,SWA006,Director of Corporate Services and Transformation,Balance Sheet,Current Assets
http://thanet.gov.uk/supplierspend,Thanet District Council,22/07/2014,364569,1933.62,Swale Heating Ltd,SWA006,Director of Corporate Services and Transformation,Balance Sheet,Current Assets
http://thanet.gov.uk/supplierspend,Thanet District Council,22/07/2014,364570,1983.87,Swale Heating Ltd,SWA006,Director of Corporate Services and Transformation,Balance Sheet,Current Assets
http://thanet.gov.uk/supplierspend,Thanet District Council,22/07/2014,365415,100000.00,The Dreamland Trust,DRE003,Director of Corporate Services and Transformation,Balance Sheet,Long Term Assets
http://thanet.gov.uk/supplierspend,Thanet District Council,22/07/2014,364485,833.33,The Glenwood Hotel,GLE007,Director Of Community Services,Revenue,Supplies and Services
http://thanet.gov.uk/supplierspend,Thanet District Council,22/07/2014,364808,1437.50,The Glenwood Hotel,GLE007,Director Of Community Services,Revenue,Supplies and Services
http://thanet.gov.uk/supplierspend,Thanet District Council,22/07/2014,365395,750.00,The Gpm Partnership,GPM001,Director of Corporate Services and Transformation,Balance Sheet,Long Term Assets
http://thanet.gov.uk/supplierspend,Thanet District Council,22/07/2014,364476,427.50,The Natural Solution Cleaning Co Ltd,NAT030,Director Of Operational Services,Revenue,Premises Related Expenditure
http://thanet.gov.uk/supplierspend,Thanet District Council,22/07/2014,364659,208.57,The Paper Company Limited,PAP003,Director of Corporate Services and Transformation,Revenue,Supplies and Services
http://thanet.gov.uk/supplierspend,Thanet District Council,22/07/2014,364909,1193.00,Thomson Snell & Passmore,THO016,Director Of Operational Services,Revenue,Supplies and Services
http://thanet.gov.uk/supplierspend,Thanet District Council,22/07/2014,365013,779.50,Total Merchandise Ltd,TOT012,Director Of Community Services,Revenue,Supplies and Services
http://thanet.gov.uk/supplierspend,Thanet District Council,22/07/2014,364992,217.77,Total Supplies Ltd,TOT009,Director of Corporate Services and Transformation,Balance Sheet,Current Liabilities
http://thanet.gov.uk/supplierspend,Thanet District Council,22/07/2014,365427,9302.00,Trueden Disability Adaptations Ltd,TRU012,Director of Corporate Services and Transformation,Balance Sheet,Long Term Assets
http://thanet.gov.uk/supplierspend,Thanet District Council,22/07/2014,365405,1000.00,Turner Contemporary,TUR016,Director Of Community Services,Revenue,Supplies and Services
http://thanet.gov.uk/supplierspend,Thanet District Council,22/07/2014,364905,5000.00,Visit Kent Ltd,VIS005,Director Of Community Services,Revenue,Supplies and Services
http://thanet.gov.uk/supplierspend,Thanet District Council,22/07/2014,364951,417.90,W G Burbridge,BUR016,Director Of Community Services,Revenue,Supplies and Services
http://thanet.gov.uk/supplierspend,Thanet District Council,22/07/2014,364983,101.14,W G Burbridge,BUR016,Director Of Operational Services,Revenue,Premises Related Expenditure
http://thanet.gov.uk/supplierspend,Thanet District Council,22/07/2014,364983,460.12,W G Burbridge,BUR016,Director Of Operational Services,Revenue,Supplies and Services
http://thanet.gov.uk/supplierspend,Thanet District Council,22/07/2014,364984,239.49,W G Burbridge,BUR016,Director Of Operational Services,Revenue,Premises Related Expenditure
http://thanet.gov.uk/supplierspend,Thanet District Council,22/07/2014,364984,991.63,W G Burbridge,BUR016,Director Of Operational Services,Revenue,Supplies and Services
http://thanet.gov.uk/supplierspend,Thanet District Council,22/07/2014,365409,800.00,Wantsum Community & Sports Assoc,WAN004,Director Of Community Services,Revenue,Supplies and Services
http://thanet.gov.uk/supplierspend,Thanet District Council,25/07/2014,365685,351.75,Allstar Business Solutions Ltd,ALL038,Director Of Operational Services,Revenue,Transport Related Expenditure
http://thanet.gov.uk/supplierspend,Thanet District Council,25/07/2014,365144,234.52,Bag Of Salt,BAG002,Director Of Operational Services,Revenue,Premises Related Expenditure
http://thanet.gov.uk/supplierspend,Thanet District Council,25/07/2014,364982,250.00,Bp Drains Ltd,BPD001,Director Of Operational Services,Revenue,Premises Related Expenditure
http://thanet.gov.uk/supplierspend,Thanet District Council,25/07/2014,365721,40.00,Bp Drains Ltd,BPD001,Director Of Operational Services,Revenue,Premises Related Expenditure
http://thanet.gov.uk/supplierspend,Thanet District Council,25/07/2014,365692,325.00,Bradstowe Chartered Surveyors,BRA027,Director Of Community Services,Revenue,Supplies and Services
http://thanet.gov.uk/supplierspend,Thanet District Council,25/07/2014,365298,5000.00,Canterbury City Council,CAN004,Chief Executive and S151,Revenue,Supplies and Services
http://thanet.gov.uk/supplierspend,Thanet District Council,25/07/2014,364843,115000.00,Channel Commercials Plc,CCO001,Director of Corporate Services and Transformation,Balance Sheet,Long Term Assets
http://thanet.gov.uk/supplierspend,Thanet District Council,25/07/2014,365010,862.51,Cj Maintenance (Crawley) Limited,CJM002,Director Of Operational Services,Revenue,Premises Related Expenditure
http://thanet.gov.uk/supplierspend,Thanet District Council,25/07/2014,365384,350.00,Dds Environmental Limited,DDS001,Director Of Operational Services,Revenue,Premises Related Expenditure
http://thanet.gov.uk/supplierspend,Thanet District Council,25/07/2014,364687,562.50,Dover District Council,DOV001,East Kent Shared Services,Revenue,Supplies and Services
http://thanet.gov.uk/supplierspend,Thanet District Council,25/07/2014,365151,788.50,E Saunders Margate Ltd,SAU001,Director of Corporate Services and Transformation,Balance Sheet,Current Assets
http://thanet.gov.uk/supplierspend,Thanet District Council,25/07/2014,365710,8152.00,Evermech Services Ltd,EVE011,Director of Corporate Services and Transformation,Balance Sheet,Long Term Assets
http://thanet.gov.uk/supplierspend,Thanet District Council,25/07/2014,365700,817.60,Family Mosaic Housing,FAM001,Director of Corporate Services and Transformation,Balance Sheet,Long Term Assets
http://thanet.gov.uk/supplierspend,Thanet District Council,25/07/2014,365701,633.64,Family Mosaic Housing,FAM001,Director of Corporate Services and Transformation,Balance Sheet,Long Term Assets
http://thanet.gov.uk/supplierspend,Thanet District Council,25/07/2014,365707,982.24,Family Mosaic Housing,FAM001,Director of Corporate Services and Transformation,Balance Sheet,Long Term Assets
http://thanet.gov.uk/supplierspend,Thanet District Council,25/07/2014,365711,765.00,Family Mosaic Housing,FAM001,Director of Corporate Services and Transformation,Balance Sheet,Long Term Assets
http://thanet.gov.uk/supplierspend,Thanet District Council,25/07/2014,364641,894.00,Freeflow Limited,FRE010,Director Of Operational Services,Revenue,Premises Related Expenditure
http://thanet.gov.uk/supplierspend,Thanet District Council,25/07/2014,364643,3326.00,Freeflow Limited,FRE010,Director Of Operational Services,Revenue,Supplies and Services
http://thanet.gov.uk/supplierspend,Thanet District Council,25/07/2014,364644,1690.00,Freeflow Limited,FRE010,Director Of Operational Services,Revenue,Premises Related Expenditure
http://thanet.gov.uk/supplierspend,Thanet District Council,25/07/2014,365335,16000.00,G Chittenden,CHI001,Director Of Operational Services,Revenue,Premises Related Expenditure
http://thanet.gov.uk/supplierspend,Thanet District Council,25/07/2014,365242,650.00,Hi Way Services Ltd,HIW002,Director Of Operational Services,Revenue,Supplies and Services
http://thanet.gov.uk/supplierspend,Thanet District Council,25/07/2014,365256,424.58,Hr Go Recruitment Ltd,HRG002,Director of Corporate Services and Transformation,Revenue,Employees
http://thanet.gov.uk/supplierspend,Thanet District Council,25/07/2014,365591,6302.99,Hr Go Recruitment Ltd,HRG002,Director Of Operational Services,Revenue,Employees
http://thanet.gov.uk/supplierspend,Thanet District Council,25/07/2014,365592,7943.22,Hr Go Recruitment Ltd,HRG002,Director Of Operational Services,Revenue,Employees
http://thanet.gov.uk/supplierspend,Thanet District Council,25/07/2014,365593,346.84,Hr Go Recruitment Ltd,HRG002,Director of Corporate Services and Transformation,Revenue,Employees
http://thanet.gov.uk/supplierspend,Thanet District Council,25/07/2014,365596,9085.31,Hr Go Recruitment Ltd,HRG002,Director Of Operational Services,Revenue,Employees
http://thanet.gov.uk/supplierspend,Thanet District Council,25/07/2014,365712,2673.00,Ihs (Global) Ltd,IHS001,Director Of Community Services,Revenue,Supplies and Services
http://thanet.gov.uk/supplierspend,Thanet District Council,25/07/2014,365136,3000.00,Kent County Council,KCC002,Chief Executive and S151,Revenue,Supplies and Services
http://thanet.gov.uk/supplierspend,Thanet District Council,25/07/2014,365698,375.00,L G G Limited,LGG001,Director Of Community Services,Revenue,Supplies and Services
http://thanet.gov.uk/supplierspend,Thanet District Council,25/07/2014,365383,537.80,Loomis Uk Ltd,LOO002,Director Of Operational Services,Revenue,Supplies and Services
http://thanet.gov.uk/supplierspend,Thanet District Council,25/07/2014,365348,376.00,Lyreco Uk Limited,LYR001,Director of Corporate Services and Transformation,Revenue,Supplies and Services
http://thanet.gov.uk/supplierspend,Thanet District Council,25/07/2014,365307,330.00,M D Electrics,MDE001,Director Of Operational Services,Revenue,Premises Related Expenditure
http://thanet.gov.uk/supplierspend,Thanet District Council,25/07/2014,365302,300.00,Maxwells Grounds Maintenance Ltd,MAX002,Director Of Operational Services,Revenue,Premises Related Expenditure
http://thanet.gov.uk/supplierspend,Thanet District Council,25/07/2014,365677,450.00,Maxwells Grounds Maintenance Ltd,MAX002,Director Of Operational Services,Revenue,Premises Related Expenditure
http://thanet.gov.uk/supplierspend,Thanet District Council,25/07/2014,365693,300.00,Maxwells Grounds Maintenance Ltd,MAX002,Director Of Operational Services,Revenue,Premises Related Expenditure
http://thanet.gov.uk/supplierspend,Thanet District Council,25/07/2014,365621,1031.20,Mears Ltd,MEA003,Director Of Operational Services,Revenue,Premises Related Expenditure
http://thanet.gov.uk/supplierspend,Thanet District Council,25/07/2014,365616,1848.00,Michael Page Int Recruitment Ltd,PAG008,Director of Corporate Services and Transformation,Revenue,Supplies and Services
http://thanet.gov.uk/supplierspend,Thanet District Council,25/07/2014,365224,302.28,Nauticalia Limited,NAU001,Director Of Community Services,Revenue,Supplies and Services
http://thanet.gov.uk/supplierspend,Thanet District Council,25/07/2014,365445,11225.63,Ocs Group Uk Ltd T/A Fountains,OCS005,Director of Corporate Services and Transformation,Balance Sheet,Current Assets
http://thanet.gov.uk/supplierspend,Thanet District Council,25/07/2014,365601,17283.36,Ocs Group Uk Ltd T/A Fountains,OCS005,Director Of Operational Services,Revenue,Premises Related Expenditure
http://thanet.gov.uk/supplierspend,Thanet District Council,25/07/2014,365605,670.48,Ocs Group Uk Ltd T/A Fountains,OCS005,Director Of Operational Services,Revenue,Premises Related Expenditure
http://thanet.gov.uk/supplierspend,Thanet District Council,25/07/2014,365606,494.53,Ocs Group Uk Ltd T/A Fountains,OCS005,Director Of Operational Services,Revenue,Premises Related Expenditure
http://thanet.gov.uk/supplierspend,Thanet District Council,25/07/2014,365612,601.47,Ocs Group Uk Ltd T/A Fountains,OCS005,Director Of Operational Services,Revenue,Premises Related Expenditure
http://thanet.gov.uk/supplierspend,Thanet District Council,25/07/2014,365238,5659.00,Ovenden Allworks Limited,OVE008,Director Of Operational Services,Revenue,Premises Related Expenditure
http://thanet.gov.uk/supplierspend,Thanet District Council,25/07/2014,365231,504.14,Phoenix Software Ltd,PHO002,East Kent Shared Services,Revenue,Supplies and Services
http://thanet.gov.uk/supplierspend,Thanet District Council,25/07/2014,365352,9100.00,Randomstorm Ltd,RAN005,East Kent Shared Services,Revenue,Supplies and Services
http://thanet.gov.uk/supplierspend,Thanet District Council,25/07/2014,365241,1955.50,Royal Mail,ROY004,Director of Corporate Services and Transformation,Revenue,Supplies and Services
http://thanet.gov.uk/supplierspend,Thanet District Council,25/07/2014,365590,1931.29,Royal Mail,ROY004,Director of Corporate Services and Transformation,Revenue,Supplies and Services
http://thanet.gov.uk/supplierspend,Thanet District Council,25/07/2014,365391,900.00,Sellick Partnership Group Ltd,SEL011,Director Of Community Services,Revenue,Supplies and Services
http://thanet.gov.uk/supplierspend,Thanet District Council,25/07/2014,365450,925.00,Silgo Lubricants Ltd,SIL007,Director Of Operational Services,Revenue,Transport Related Expenditure
http://thanet.gov.uk/supplierspend,Thanet District Council,25/07/2014,365389,1705.00,South East England Councils,SEE017,Director of Corporate Services and Transformation,Revenue,Supplies and Services
http://thanet.gov.uk/supplierspend,Thanet District Council,25/07/2014,365705,6375.00,South East Wetrooms Limited,SEW002,Director of Corporate Services and Transformation,Balance Sheet,Long Term Assets
http://thanet.gov.uk/supplierspend,Thanet District Council,25/07/2014,365635,7291.94,Straight Plc,STR021,Director Of Operational Services,Revenue,Supplies and Services
http://thanet.gov.uk/supplierspend,Thanet District Council,25/07/2014,365636,7428.80,Straight Plc,STR021,Director of Corporate Services and Transformation,Balance Sheet,Long Term Assets
http://thanet.gov.uk/supplierspend,Thanet District Council,25/07/2014,365686,4952.53,Straight Plc,STR021,Director of Corporate Services and Transformation,Balance Sheet,Long Term Assets
http://thanet.gov.uk/supplierspend,Thanet District Council,25/07/2014,365686,2430.65,Straight Plc,STR021,Director Of Operational Services,Revenue,Supplies and Services
http://thanet.gov.uk/supplierspend,Thanet District Council,25/07/2014,365687,7428.80,Straight Plc,STR021,Director of Corporate Services and Transformation,Balance Sheet,Long Term Assets
http://thanet.gov.uk/supplierspend,Thanet District Council,25/07/2014,365161,2079.16,The Glenwood Hotel,GLE007,Director Of Community Services,Revenue,Supplies and Services
http://thanet.gov.uk/supplierspend,Thanet District Council,25/07/2014,365703,3338.00,Thomson Reuters (Professional) Ltd,THO048,Director of Corporate Services and Transformation,Revenue,Supplies and Services
http://thanet.gov.uk/supplierspend,Thanet District Council,25/07/2014,365345,1814.08,Tourism Works,TOU007,Director Of Community Services,Revenue,Supplies and Services
http://thanet.gov.uk/supplierspend,Thanet District Council,25/07/2014,365228,4503.52,Trinity House,TRI002,Director of Corporate Services and Transformation,Balance Sheet,Current Assets
http://thanet.gov.uk/supplierspend,Thanet District Council,25/07/2014,365702,3671.13,Trueden Disability Adaptations Ltd,TRU012,Director of Corporate Services and Transformation,Balance Sheet,Long Term Assets
http://thanet.gov.uk/supplierspend,Thanet District Council,25/07/2014,365239,2161.31,Veolia Es (Uk) Ltd,VEO001,Director Of Operational Services,Revenue,Premises Related Expenditure
http://thanet.gov.uk/supplierspend,Thanet District Council,25/07/2014,365376,537.88,Viridor Waste Management Ltd,VIR003,Director Of Operational Services,Revenue,Third Party Payments
http://thanet.gov.uk/supplierspend,Thanet District Council,25/07/2014,365694,283.32,Viridor Waste Management Ltd,VIR003,Director Of Operational Services,Revenue,Premises Related Expenditure
http://thanet.gov.uk/supplierspend,Thanet District Council,25/07/2014,365451,260.00,Willow Pumps Limited,WIL042,Director Of Operational Services,Revenue,Supplies and Services
http://thanet.gov.uk/supplierspend,Thanet District Council,28/07/2014,PC5726,220.45,4Imprint Direct Ltd,N/A,Director Of Community Services,Revenue,Supplies and Services
http://thanet.gov.uk/supplierspend,Thanet District Council,28/07/2014,PC5712,280.00,County Court,N/A,Director of Corporate Services and Transformation,Revenue,Supplies and Services
http://thanet.gov.uk/supplierspend,Thanet District Council,28/07/2014,PC5634,280.26,Crest Medical Ltd,N/A,Director Of Operational Services,Revenue,Supplies and Services
http://thanet.gov.uk/supplierspend,Thanet District Council,28/07/2014,PC5632,255.00,David Musson Fencing,N/A,Director Of Operational Services,Revenue,Supplies and Services
http://thanet.gov.uk/supplierspend,Thanet District Council,28/07/2014,PC5633,88.00,David Musson Fencing,N/A,Director Of Operational Services,Revenue,Supplies and Services
http://thanet.gov.uk/supplierspend,Thanet District Council,28/07/2014,PC5698,652.50,DVLA,N/A,Director Of Operational Services,Revenue,Transport Related Expenditure
http://thanet.gov.uk/supplierspend,Thanet District Council,28/07/2014,PC5699,652.50,DVLA,N/A,Director Of Operational Services,Revenue,Transport Related Expenditure
http://thanet.gov.uk/supplierspend,Thanet District Council,28/07/2014,PC5700,652.50,DVLA,N/A,Director Of Operational Services,Revenue,Transport Related Expenditure
http://thanet.gov.uk/supplierspend,Thanet District Council,28/07/2014,PC5701,652.50,DVLA,N/A,Director Of Operational Services,Revenue,Transport Related Expenditure
http://thanet.gov.uk/supplierspend,Thanet District Council,28/07/2014,PC5702,652.50,DVLA,N/A,Director Of Operational Services,Revenue,Transport Related Expenditure
http://thanet.gov.uk/supplierspend,Thanet District Council,28/07/2014,PC5703,652.50,DVLA,N/A,Director Of Operational Services,Revenue,Transport Related Expenditure
http://thanet.gov.uk/supplierspend,Thanet District Council,28/07/2014,PC5704,652.50,DVLA,N/A,Director Of Operational Services,Revenue,Transport Related Expenditure
http://thanet.gov.uk/supplierspend,Thanet District Council,28/07/2014,PC5705,652.50,DVLA,N/A,Director Of Operational Services,Revenue,Transport Related Expenditure
http://thanet.gov.uk/supplierspend,Thanet District Council,28/07/2014,PC5706,652.50,DVLA,N/A,Director Of Operational Services,Revenue,Transport Related Expenditure
http://thanet.gov.uk/supplierspend,Thanet District Council,28/07/2014,PC5707,652.50,DVLA,N/A,Director Of Operational Services,Revenue,Transport Related Expenditure
http://thanet.gov.uk/supplierspend,Thanet District Council,28/07/2014,PC5708,652.50,DVLA,N/A,Director Of Operational Services,Revenue,Transport Related Expenditure
http://thanet.gov.uk/supplierspend,Thanet District Council,28/07/2014,PC5758,449.00,Emap Ltd,N/A,Director Of Operational Services,Revenue,Supplies and Services
http://thanet.gov.uk/supplierspend,Thanet District Council,28/07/2014,PC5709,394.00,Gentworks,N/A,Director Of Community Services,Revenue,Premises Related Expenditure
http://thanet.gov.uk/supplierspend,Thanet District Council,28/07/2014,PC5685,258.00,GSW,N/A,Director of Corporate Services and Transformation,Revenue,Supplies and Services
http://thanet.gov.uk/supplierspend,Thanet District Council,28/07/2014,PC5697,368.99,Hames Chocolates Ltd,N/A,Director Of Community Services,Revenue,Supplies and Services
http://thanet.gov.uk/supplierspend,Thanet District Council,28/07/2014,PC5658,1052.60,IAAPA Dues,N/A,Director Of Community Services,Revenue,Supplies and Services
http://thanet.gov.uk/supplierspend,Thanet District Council,28/07/2014,PC5684,359.69,Pluralsight LLP,N/A,East Kent Shared Services,Revenue,Supplies and Services
http://thanet.gov.uk/supplierspend,Thanet District Council,28/07/2014,PC5713,300.00,Possessions Online,N/A,Director Of Community Services,Revenue,Supplies and Services
http://thanet.gov.uk/supplierspend,Thanet District Council,28/07/2014,PC5716,250.00,Possessions Online,N/A,Director Of Community Services,Revenue,Supplies and Services
http://thanet.gov.uk/supplierspend,Thanet District Council,28/07/2014,PC5717,250.00,Possessions Online,N/A,Director Of Community Services,Revenue,Supplies and Services
http://thanet.gov.uk/supplierspend,Thanet District Council,28/07/2014,PC5718,250.00,Possessions Online,N/A,Director Of Community Services,Revenue,Supplies and Services
http://thanet.gov.uk/supplierspend,Thanet District Council,28/07/2014,PC5719,250.00,Possessions Online,N/A,Director Of Community Services,Revenue,Supplies and Services
http://thanet.gov.uk/supplierspend,Thanet District Council,28/07/2014,PC5720,250.00,Possessions Online,N/A,Director Of Community Services,Revenue,Supplies and Services
http://thanet.gov.uk/supplierspend,Thanet District Council,28/07/2014,PC5655,217.55,The Safety Supply Company,N/A,Director Of Operational Services,Revenue,Supplies and Services
http://thanet.gov.uk/supplierspend,Thanet District Council,28/07/2014,PC5728,267.10,Webtis,N/A,Director Of Community Services,Revenue,Transport Related Expenditure
http://thanet.gov.uk/supplierspend,Thanet District Council,29/07/2014,365012,3959.44,Agwood Ltd,AGW001,Director Of Operational Services,Revenue,Transport Related Expenditure
http://thanet.gov.uk/supplierspend,Thanet District Council,29/07/2014,365639,690.00,Ashdown Supplies,ASH009,Director Of Operational Services,Revenue,Supplies and Services
http://thanet.gov.uk/supplierspend,Thanet District Council,29/07/2014,365946,5820.00,Bramling Construction Ltd,BRA020,Director of Corporate Services and Transformation,Balance Sheet,Long Term Assets
http://thanet.gov.uk/supplierspend,Thanet District Council,29/07/2014,365588,840.00,British Parking Association,BPA001,Director Of Operational Services,Revenue,Supplies and Services
http://thanet.gov.uk/supplierspend,Thanet District Council,29/07/2014,365618,1350.00,Broadstairs Metal Craft,BRO058,Director Of Operational Services,Revenue,Premises Related Expenditure
http://thanet.gov.uk/supplierspend,Thanet District Council,29/07/2014,365637,4645.00,Broadstairs Metal Craft,BRO058,Director Of Operational Services,Revenue,Supplies and Services
http://thanet.gov.uk/supplierspend,Thanet District Council,29/07/2014,365664,473.30,Channel Commercials Plc,CCO001,Director Of Operational Services,Revenue,Transport Related Expenditure
http://thanet.gov.uk/supplierspend,Thanet District Council,29/07/2014,365665,395.53,Channel Commercials Plc,CCO001,Director Of Operational Services,Revenue,Transport Related Expenditure
http://thanet.gov.uk/supplierspend,Thanet District Council,29/07/2014,365666,224.24,Channel Commercials Plc,CCO001,Director Of Operational Services,Revenue,Transport Related Expenditure
http://thanet.gov.uk/supplierspend,Thanet District Council,29/07/2014,365673,3927.28,Civica Uk Ltd,CIV003,East Kent Shared Services,Revenue,Supplies and Services
http://thanet.gov.uk/supplierspend,Thanet District Council,29/07/2014,365301,6638.80,Commercial Services Kent Ltd,COM049,Director Of Operational Services,Revenue,Supplies and Services
http://thanet.gov.uk/supplierspend,Thanet District Council,29/07/2014,365304,883.40,Commercial Services Kent Ltd,COM049,Director Of Operational Services,Revenue,Supplies and Services
http://thanet.gov.uk/supplierspend,Thanet District Council,29/07/2014,365347,476.00,Dennis Eagle Ltd,DEN005,Director Of Operational Services,Revenue,Transport Related Expenditure
http://thanet.gov.uk/supplierspend,Thanet District Council,29/07/2014,365933,3600.00,Dolphin Lifts Kent,DOL003,Director of Corporate Services and Transformation,Balance Sheet,Long Term Assets
http://thanet.gov.uk/supplierspend,Thanet District Council,29/07/2014,365381,700.00,Dr Alexander Marshall,MAR100,Director Of Operational Services,Revenue,Supplies and Services
http://thanet.gov.uk/supplierspend,Thanet District Council,29/07/2014,365672,995.12,Envirovent Ltd,ENV017,Director of Corporate Services and Transformation,Balance Sheet,Current Assets
http://thanet.gov.uk/supplierspend,Thanet District Council,29/07/2014,365949,698.40,Family Mosaic Housing,FAM001,Director of Corporate Services and Transformation,Balance Sheet,Long Term Assets
http://thanet.gov.uk/supplierspend,Thanet District Council,29/07/2014,365600,9734.65,G & W Gardner Building Cont Ltd,GAR001,Director of Corporate Services and Transformation,Balance Sheet,Current Assets
http://thanet.gov.uk/supplierspend,Thanet District Council,29/07/2014,364972,420.00,Gee Brown,BRO035,Director of Corporate Services and Transformation,Revenue,Employees
http://thanet.gov.uk/supplierspend,Thanet District Council,29/07/2014,365623,539.00,Hadlow College,HAD002,Director of Corporate Services and Transformation,Revenue,Employees
http://thanet.gov.uk/supplierspend,Thanet District Council,29/07/2014,365874,209.78,Hands On Suppliers Ltd,HAN007,Director Of Operational Services,Revenue,Supplies and Services
http://thanet.gov.uk/supplierspend,Thanet District Council,29/07/2014,365876,290.65,Hands On Suppliers Ltd,HAN007,Director Of Operational Services,Revenue,Supplies and Services
http://thanet.gov.uk/supplierspend,Thanet District Council,29/07/2014,364693,2806.02,Hayes & Finch Ltd,HAY017,Director Of Operational Services,Revenue,Supplies and Services
http://thanet.gov.uk/supplierspend,Thanet District Council,29/07/2014,365629,474.00,Insight Direct (Uk) Ltd,INS013,East Kent Shared Services,Revenue,Supplies and Services
http://thanet.gov.uk/supplierspend,Thanet District Council,29/07/2014,365630,250.44,Jewson Ltd,JEW001,Director Of Operational Services,Revenue,Supplies and Services
http://thanet.gov.uk/supplierspend,Thanet District Council,29/07/2014,365924,2924.00,John Gale,GAL001,Director of Corporate Services and Transformation,Balance Sheet,Long Term Assets
http://thanet.gov.uk/supplierspend,Thanet District Council,29/07/2014,365926,739.44,John Gale,GAL001,Director of Corporate Services and Transformation,Balance Sheet,Long Term Assets
http://thanet.gov.uk/supplierspend,Thanet District Council,29/07/2014,365928,1510.20,John Gale,GAL001,Director of Corporate Services and Transformation,Balance Sheet,Long Term Assets
http://thanet.gov.uk/supplierspend,Thanet District Council,29/07/2014,365935,1284.36,John Gale,GAL001,Director of Corporate Services and Transformation,Balance Sheet,Long Term Assets
http://thanet.gov.uk/supplierspend,Thanet District Council,29/07/2014,365390,460.00,John Reeve (Plant Hire) Ltd,REE013,Director Of Operational Services,Revenue,Transport Related Expenditure
http://thanet.gov.uk/supplierspend,Thanet District Council,29/07/2014,365720,1498.50,John Reeve (Plant Hire) Ltd,REE013,Director Of Operational Services,Revenue,Transport Related Expenditure
http://thanet.gov.uk/supplierspend,Thanet District Council,29/07/2014,365651,330.60,Johnston Sweepers Ltd,JOH008,Director Of Operational Services,Revenue,Transport Related Expenditure
http://thanet.gov.uk/supplierspend,Thanet District Council,29/07/2014,365452,4221.00,Kent County Council,KCC002,Director of Corporate Services and Transformation,Revenue,Supplies and Services
http://thanet.gov.uk/supplierspend,Thanet District Council,29/07/2014,365388,40800.00,Kent Police & Crime Commissioner,KPC002,Director Of Community Services,Revenue,Supplies and Services
http://thanet.gov.uk/supplierspend,Thanet District Council,29/07/2014,365652,1196.00,Marks Plants,MAR104,Director Of Operational Services,Revenue,Employees
http://thanet.gov.uk/supplierspend,Thanet District Council,29/07/2014,365354,13082.24,Mears Ltd,MEA003,Director of Corporate Services and Transformation,Balance Sheet,Current Assets
http://thanet.gov.uk/supplierspend,Thanet District Council,29/07/2014,365355,566.49,Mears Ltd,MEA003,Director of Corporate Services and Transformation,Balance Sheet,Current Assets
http://thanet.gov.uk/supplierspend,Thanet District Council,29/07/2014,365357,3410.43,Mears Ltd,MEA003,Director of Corporate Services and Transformation,Balance Sheet,Current Assets
http://thanet.gov.uk/supplierspend,Thanet District Council,29/07/2014,365358,42809.08,Mears Ltd,MEA003,Director of Corporate Services and Transformation,Balance Sheet,Current Assets
http://thanet.gov.uk/supplierspend,Thanet District Council,29/07/2014,365680,6094.51,Mears Ltd,MEA003,Director of Corporate Services and Transformation,Balance Sheet,Current Assets
http://thanet.gov.uk/supplierspend,Thanet District Council,29/07/2014,365681,5237.36,Mears Ltd,MEA003,Director of Corporate Services and Transformation,Balance Sheet,Current Assets
http://thanet.gov.uk/supplierspend,Thanet District Council,29/07/2014,365682,25605.00,Mears Ltd,MEA003,Director of Corporate Services and Transformation,Balance Sheet,Current Assets
http://thanet.gov.uk/supplierspend,Thanet District Council,29/07/2014,365927,6162.00,Northwood Builders,NOR002,Director of Corporate Services and Transformation,Balance Sheet,Long Term Assets
http://thanet.gov.uk/supplierspend,Thanet District Council,29/07/2014,365152,2650.00,Oasis,OAS001,Director Of Community Services,Revenue,Supplies and Services
http://thanet.gov.uk/supplierspend,Thanet District Council,29/07/2014,365714,450.00,Parkeon Limited,PAR063,Director Of Operational Services,Revenue,Supplies and Services
http://thanet.gov.uk/supplierspend,Thanet District Council,29/07/2014,365931,5956.00,Premiere Projects Limited,PRE022,Director of Corporate Services and Transformation,Balance Sheet,Long Term Assets
http://thanet.gov.uk/supplierspend,Thanet District Council,29/07/2014,365925,10218.50,South East Building Company Limited,SEB001,Director of Corporate Services and Transformation,Balance Sheet,Long Term Assets
http://thanet.gov.uk/supplierspend,Thanet District Council,29/07/2014,365929,7200.00,South East Building Company Limited,SEB001,Director of Corporate Services and Transformation,Balance Sheet,Long Term Assets
http://thanet.gov.uk/supplierspend,Thanet District Council,29/07/2014,364968,290.00,Sparshatts Of Kent Ltd,SPA008,Director Of Operational Services,Revenue,Transport Related Expenditure
http://thanet.gov.uk/supplierspend,Thanet District Council,29/07/2014,364535,1732.62,Swale Heating Ltd,SWA006,Director of Corporate Services and Transformation,Balance Sheet,Current Assets
http://thanet.gov.uk/supplierspend,Thanet District Council,29/07/2014,364536,1602.98,Swale Heating Ltd,SWA006,Director of Corporate Services and Transformation,Balance Sheet,Current Assets
http://thanet.gov.uk/supplierspend,Thanet District Council,29/07/2014,364537,1818.05,Swale Heating Ltd,SWA006,Director of Corporate Services and Transformation,Balance Sheet,Current Assets
http://thanet.gov.uk/supplierspend,Thanet District Council,29/07/2014,364538,1747.70,Swale Heating Ltd,SWA006,Director of Corporate Services and Transformation,Balance Sheet,Current Assets
http://thanet.gov.uk/supplierspend,Thanet District Council,29/07/2014,364539,1994.93,Swale Heating Ltd,SWA006,Director of Corporate Services and Transformation,Balance Sheet,Current Assets
http://thanet.gov.uk/supplierspend,Thanet District Council,29/07/2014,364540,1546.70,Swale Heating Ltd,SWA006,Director of Corporate Services and Transformation,Balance Sheet,Current Assets
http://thanet.gov.uk/supplierspend,Thanet District Council,29/07/2014,364541,1417.05,Swale Heating Ltd,SWA006,Director of Corporate Services and Transformation,Balance Sheet,Current Assets
http://thanet.gov.uk/supplierspend,Thanet District Council,29/07/2014,364542,1417.05,Swale Heating Ltd,SWA006,Director of Corporate Services and Transformation,Balance Sheet,Current Assets
http://thanet.gov.uk/supplierspend,Thanet District Council,29/07/2014,364543,2019.05,Swale Heating Ltd,SWA006,Director of Corporate Services and Transformation,Balance Sheet,Current Assets
http://thanet.gov.uk/supplierspend,Thanet District Council,29/07/2014,364544,1552.73,Swale Heating Ltd,SWA006,Director of Corporate Services and Transformation,Balance Sheet,Current Assets
http://thanet.gov.uk/supplierspend,Thanet District Council,29/07/2014,364547,1417.05,Swale Heating Ltd,SWA006,Director of Corporate Services and Transformation,Balance Sheet,Current Assets
http://thanet.gov.uk/supplierspend,Thanet District Council,29/07/2014,365696,-773.35,Swale Heating Ltd,SWA006,Director of Corporate Services and Transformation,Balance Sheet,Current Assets
http://thanet.gov.uk/supplierspend,Thanet District Council,29/07/2014,365697,-708.53,Swale Heating Ltd,SWA006,Director of Corporate Services and Transformation,Balance Sheet,Current Assets
http://thanet.gov.uk/supplierspend,Thanet District Council,29/07/2014,365294,245.00,Swale Shutter & Door Services Ltd,SWA013,Director Of Operational Services,Revenue,Supplies and Services
http://thanet.gov.uk/supplierspend,Thanet District Council,29/07/2014,365980,-245.00,Swale Shutter & Door Services Ltd,SWA013,Director Of Operational Services,Revenue,Supplies and Services
http://thanet.gov.uk/supplierspend,Thanet District Council,29/07/2014,365981,245.00,Swale Shutter & Door Services Ltd,SWA013,Director Of Operational Services,Revenue,Supplies and Services
http://thanet.gov.uk/supplierspend,Thanet District Council,29/07/2014,365386,1035.90,Thanet Waste Services Ltd,TWA001,Director Of Operational Services,Revenue,Third Party Payments
http://thanet.gov.uk/supplierspend,Thanet District Council,29/07/2014,365930,5677.00,Trueden Disability Adaptations Ltd,TRU012,Director of Corporate Services and Transformation,Balance Sheet,Long Term Assets
http://thanet.gov.uk/supplierspend,Thanet District Council,29/07/2014,365948,1500.00,Westgate On Sea Lighting&Improvement,WES048,Director Of Community Services,Revenue,Supplies and Services
http://thanet.gov.uk/supplierspend,Thanet District Council,29/07/2014,365947,500.00,Windmill Community Gardens,WIN017,Director Of Community Services,Revenue,Supplies and Services
http://thanet.gov.uk/supplierspend,Thanet District Council,30/07/2014,366107,1407.99,Co-Operative Bank Paypoint,COO018,Director of Corporate Services and Transformation,Revenue,Supplies and Services
http://thanet.gov.uk/supplierspend,Thanet District Council,30/07/2014,366107,469.33,Co-Operative Bank Paypoint,COO018,Director Of Community Services,Revenue,Supplies and Services
http://thanet.gov.uk/supplierspend,Thanet District Council,30/07/2014,366075,1101.56,Nat West Bank,NWE001,Director of Corporate Services and Transformation,Revenue,Supplies and Services
http://thanet.gov.uk/supplierspend,Thanet District Council,30/07/2014,366097,264.85,Nat West Bank,NWE001,Director of Corporate Services and Transformation,Revenue,Supplies and Services
http://thanet.gov.uk/supplierspend,Thanet District Council,30/07/2014,366098,264.60,Nat West Bank,NWE001,Director of Corporate Services and Transformation,Revenue,Supplies and Services
http://thanet.gov.uk/supplierspend,Thanet District Council,30/07/2014,366076,843.84,Santander,SAN017,Director of Corporate Services and Transformation,Revenue,Supplies and Services
http://thanet.gov.uk/supplierspend,Thanet District Council,30/07/2014,366077,2033.47,Santander,SAN017,Director of Corporate Services and Transformation,Revenue,Supplies and Services
http://thanet.gov.uk/supplierspend,Thanet District Council,30/07/2014,366077,677.83,Santander,SAN017,Director Of Community Services,Revenue,Supplies and Services
http://thanet.gov.uk/supplierspend,Thanet District Council,30/07/2014,366072,2501049.00,Secretary Of State,SEC003,Director of Corporate Services and Transformation,Balance Sheet,Current Liabilities
http://thanet.gov.uk/supplierspend,Thanet District Council,30/07/2014,366079,1995.69,Worldpay Ltd,WOR008,Director of Corporate Services and Transformation,Revenue,Supplies and Services
http://thanet.gov.uk/supplierspend,Thanet District Council,30/07/2014,366091,606.87,Worldpay Ltd,WOR008,Director Of Operational Services,Revenue,Supplies and Services
http://thanet.gov.uk/supplierspend,Thanet District Council,30/07/2014,366101,1635.02,Worldpay Ltd,WOR008,Director of Corporate Services and Transformation,Revenue,Supplies and Services
http://thanet.gov.uk/supplierspend,Thanet District Council,30/07/2014,366102,1799.31,Worldpay Ltd,WOR008,Director of Corporate Services and Transformation,Revenue,Supplies and Services
http://thanet.gov.uk/supplierspend,Thanet District Council,30/07/2014,366108,350.95,Worldpay Ltd,WOR008,Director of Corporate Services and Transformation,Revenue,Supplies and Services
http://thanet.gov.uk/supplierspend,Thanet District Council,31/07/2014,366179,92000.00,Black Norman Solicitors,BLA028,Director of Corporate Services and Transformation,Balance Sheet,Long Term Assets
http://thanet.gov.uk/supplierspend,Thanet District Council,31/07/2014,366093,566.98,Worldpay Ltd,WOR008,Director of Corporate Services and Transformation,Revenue,Supplies and Services
